Workbook

Sheet xsymbol
D5: SYMBOLE | E5: CODE CLAVIER | F5: CODE HTML ISO | G5: CODE HTML NOMMÉ | H5: DESCRIPTION
C6: &alpha; | D6: $\\alpha\\$ | E6: =CONCATENATE(":%s/",C6,"/",D6,"/gie") -> :%s/&alpha;/$\\alpha\\$/gie | F6: &#945; | G6: &alpha; | H6: Alpha minuscule | L6: SYMBOLE | M6: CODE CLAVIER | N6: CODE HTML ISO | O6: CODE HTML NOMMÉ | P6: DESCRIPTION
C7: &beta; | D7: $\\beta\\$ | E7: :%s/&beta;/$\\beta\\$/gie | F7: &#946; | G7: &beta; | H7: Beta minuscule | L7: ! | M7: Alt+ 33 | N7: &#33; | O7: aucun | P7: Point d'exclamation | R7: =CONCATENATE(":%s/",N7,"/",L7,"/gie") -> :%s/&#33;/!/gie
C8: &gamma; | D8: $\\gamma\\$ | E8: :%s/&gamma;/$\\gamma\\$/gie | F8: &#947; | G8: &gamma; | H8: Gamma minuscule | L8: " | M8: Alt+ 34 | N8: &#34; | O8: &quot; | P8: Guillemets à l'anglaise | R8: :%s/&#34;/"/gie
C9: &delta; | D9: $\\delta\\$ | E9: :%s/&delta;/$\\delta\\$/gie | F9: &#948; | G9: &delta; | H9: Delta minuscule | L9: # | M9: Alt+ 35 | N9: &#35; | O9: aucun | P9: Dièse / Numéro | R9: :%s/&#35;/#/gie
C10: &epsilon; | D10: $\\epsilon\\$ | E10: :%s/&epsilon;/$\\epsilon\\$/gie | F10: &#949; | G10: &epsilon; | H10: Epsilon minuscule | L10: $ | M10: Alt+ 36 | N10: &#36; | O10: &dollar; | P10: Dollar | R10: :%s/&#36;/$/gie
C11: &zeta; | D11: $\\zeta\\$ | E11: :%s/&zeta;/$\\zeta\\$/gie | F11: &#950; | G11: &zeta; | H11: Zeta minuscule | L11: \\% | M11: Alt+ 37 | N11: &#37; | O11: aucun | P11: Pourcent | R11: :%s/&#37;/\\%/gie
C12: &eta; | D12: $\\eta\\$ | E12: :%s/&eta;/$\\eta\\$/gie | F12: &#951; | G12: &eta; | H12: Eta minuscule | L12: \\& | M12: Alt+ 38 | N12: &#38; | O12: &amp; | P12: Esperluette | R12: :%s/&#38;/\\&/gie
C13: &theta; | D13: $\\theta\\$ | E13: :%s/&theta;/$\\theta\\$/gie | F13: &#952; | G13: &theta; | H13: Theta minuscule | L13: ' | M13: Alt+ 39 | N13: &#39; | O13: &apos; | P13: Apostrophe | R13: :%s/&#39;/'/gie
C14: &iota; | D14: $\\iota\\$ | E14: :%s/&iota;/$\\iota\\$/gie | F14: &#953; | G14: &iota; | H14: Iota minuscule | L14: ( | M14: Alt+ 40 | N14: &#40; | O14: aucun | P14: Parenthèse gauche | R14: :%s/&#40;/(/gie
C15: &kappa; | D15: $\\kappa\\$ | E15: :%s/&kappa;/$\\kappa\\$/gie | F15: &#954; | G15: &kappa; | H15: Kappa minuscule | L15: ) | M15: Alt+ 41 | N15: &#41; | O15: aucun | P15: Parenthèse droite | R15: :%s/&#41;/)/gie
C16: &lambda; | D16: $\\lambda\\$ | E16: :%s/&lambda;/$\\lambda\\$/gie | F16: &#955; | G16: &lambda; | H16: Lambda minuscule | L16: * | M16: Alt+ 42 | N16: &#42; | O16: aucun | P16: Astérisque | R16: :%s/&#42;/*/gie
C17: &mu; | D17: $\\mu\\$ | E17: :%s/&mu;/$\\mu\\$/gie | F17: &#956; | G17: &mu; | H17: Mu minuscule | L17: + | M17: Alt+ 43 | N17: &#43; | O17: aucun | P17: Plus | R17: :%s/&#43;/+/gie
C18: &nu; | D18: $\\nu\\$ | E18: :%s/&nu;/$\\nu\\$/gie | F18: &#957; | G18: &nu; | H18: Nu minuscule | L18: , | M18: Alt+ 44 | N18: &#44; | O18: aucun | P18: Virgule | R18: :%s/&#44;/,/gie
C19: &xi; | D19: $\\xi\\$ | E19: :%s/&xi;/$\\xi\\$/gie | F19: &#958; | G19: &xi; | H19: Xi minuscule | L19: - | M19: Alt+ 45 | N19: &#45; | O19: aucun | P19: Moins | R19: :%s/&#45;/-/gie
C20: &omicron; | D20: $\\omicron\\$ | E20: :%s/&omicron;/$\\omicron\\$/gie | F20: &#959; | G20: &omicron; | H20: Omicron minuscule | L20: . | M20: Alt+ 46 | N20: &#46; | O20: aucun | P20: Point | R20: :%s/&#46;/./gie
C21: &pi; | D21: $\\pi\\$ | E21: :%s/&pi;/$\\pi\\$/gie | F21: &#960; | G21: &pi; | H21: Pi minuscule | L21: \/ | M21: Alt+ 47 | N21: &#47; | O21: aucun | P21: Barre oblique (slash) | R21: :%s/&#47;/\//gie
C22: &rho; | D22: $\\rho\\$ | E22: :%s/&rho;/$\\rho\\$/gie | F22: &#961; | G22: &rho; | H22: Rho minuscule | L22: : | M22: Alt+ 58 | N22: &#58; | O22: aucun | P22: Double point | R22: :%s/&#58;/:/gie
C23: &sigma; | D23: $\\sigma\\$ | E23: :%s/&sigma;/$\\sigma\\$/gie | F23: &#963; | G23: &sigma; | H23: Sigma minuscule | L23: ; | M23: Alt+ 59 | N23: &#59; | O23: aucun | P23: Point-virgule | R23: :%s/&#59;/;/gie
C24: &tau; | D24: $\\tau\\$ | E24: :%s/&tau;/$\\tau\\$/gie | F24: &#964; | G24: &tau; | H24: Tau minuscule | L24: < | M24: Alt+ 60 | N24: &#60; | O24: &lt; | P24: Signe inférieur | R24: :%s/&#60;/</gie
C25: &upsilon; | D25: $\\upsilon\\$ | E25: :%s/&upsilon;/$\\upsilon\\$/gie | F25: &#965; | G25: &upsilon; | H25: Upsilon minuscule | L25: = | M25: Alt+ 60 | N25: &#61; | O25: aucun | P25: Égal | R25: :%s/&#61;/=/gie
C26: &phi; | D26: $\\phi\\$ | E26: :%s/&phi;/$\\phi\\$/gie | F26: &#966; | G26: &phi; | H26: Phi minuscule | L26: > | M26: Alt+ 62 | N26: &#62; | O26: &gt; | P26: Signe supérieur | R26: :%s/&#62;/>/gie
C27: &chi; | D27: $\\chi\\$ | E27: :%s/&chi;/$\\chi\\$/gie | F27: &#967; | G27: &chi; | H27: Chi minuscule | L27: ? | M27: Alt+ 63 | N27: &#63; | O27: aucun | P27: Point d'interrogation | R27: :%s/&#63;/?/gie
C28: &psi; | D28: $\\psi\\$ | E28: :%s/&psi;/$\\psi\\$/gie | F28: &#968; | G28: &psi; | H28: Psi minuscule | L28: @ | M28: Alt+ 64 | N28: &#64; | O28: aucun | P28: Arobase | R28: :%s/&#64;/@/gie
C29: &omega; | D29: $\\omega\\$ | E29: :%s/&omega;/$\\omega\\$/gie | F29: &#969; | G29: &omega; | H29: Omega minuscule | L29: [ | M29: Alt+ 91 | N29: &#91; | O29: aucun | P29: Crochet gauche | R29: :%s/&#91;/[/gie
C30: &Alpha; | D30: $\\Alpha\\$ | E30: :%s/&Alpha;/$\\Alpha\\$/gie | F30: &#913; | G30: &Alpha; | H30: Alpha majuscule | L30: \\ | M30: Alt+ 92 | N30: &#92; | O30: aucun | P30: Barre oblique inversée | R30: :%s/&#92;/\\/gie
C31: &Beta; | D31: $\\Beta\\$ | E31: :%s/&Beta;/$\\Beta\\$/gie | F31: &#914; | G31: &Beta; | H31: Beta majuscule | L31: ] | M31: Alt+ 93 | N31: &#93; | O31: aucun | P31: Crochet droit | R31: :%s/&#93;/]/gie
C32: &Gamma; | D32: $\\Gamma\\$ | E32: :%s/&Gamma;/$\\Gamma\\$/gie | F32: &#915; | G32: &Gamma; | H32: Gamma majuscule | L32: ^ | M32: Alt+ 94 | N32: &#94; | O32: aucun | P32: Accent circonflexe | R32: :%s/&#94;/^/gie
C33: &Delta; | D33: $\\Delta\\$ | E33: :%s/&Delta;/$\\Delta\\$/gie | F33: &#916; | G33: &Delta; | H33: Delta majuscule | L33: \_ | M33: Alt+ 95 | N33: &#95; | O33: aucun | P33: Tiret bas (underscore) | R33: :%s/&#95;/\_/gie
C34: &Epsilon; | D34: $\\Epsilon\\$ | E34: :%s/&Epsilon;/$\\Epsilon\\$/gie | F34: &#917; | G34: &Epsilon; | H34: Epsilon majuscule | L34: ` | M34: Alt+ 96 | N34: &#96; | O34: aucun | P34: Accent grave | R34: :%s/&#96;/`/gie
C35: &Zeta; | D35: $\\Zeta\\$ | E35: :%s/&Zeta;/$\\Zeta\\$/gie | F35: &#918; | G35: &Zeta; | H35: Zeta majuscule | L35: { | M35: Alt+ 123 | N35: &#123; | O35: aucun | P35: Accolade gauche | R35: :%s/&#123;/{/gie
C36: &Eta; | D36: $\\Eta\\$ | E36: :%s/&Eta;/$\\Eta\\$/gie | F36: &#919; | G36: &Eta; | H36: Eta majuscule | L36: | | M36: Alt+ 124 | N36: &#124; | O36: aucun | P36: Barre verticale | R36: :%s/&#124;/|/gie
C37: &Theta; | D37: $\\Theta\\$ | E37: :%s/&Theta;/$\\Theta\\$/gie | F37: &#920; | G37: &Theta; | H37: Theta majuscule | L37: } | M37: Alt+ 125 | N37: &#125; | O37: aucun | P37: Accolade droite | R37: :%s/&#125;/}/gie
C38: &Iota; | D38: $\\Iota\\$ | E38: :%s/&Iota;/$\\Iota\\$/gie | F38: &#921; | G38: &Iota; | H38: Iota majuscule | L38: ~ | M38: Alt+ 126 | N38: &#126; | O38: aucun | P38: Tilde | R38: :%s/&#126;/~/gie
C39: &Kappa; | D39: $\\Kappa\\$ | E39: :%s/&Kappa;/$\\Kappa\\$/gie | F39: &#922; | G39: &Kappa; | H39: Kappa majuscule | L39: ¡ | M39: Alt+ 161 | N39: &#161; | O39: &iexcl; | P39: Point d'exclamation inversé | R39: =CONCATENATE(":%s/",N39,"/",L39,"/gie") -> :%s/&#161;/¡/gie
C40: &Lambda; | D40: $\\Lambda\\$ | E40: :%s/&Lambda;/$\\Lambda\\$/gie | F40: &#923; | G40: &Lambda; | H40: Lambda majuscule | L40: ¦ | M40: Alt+ 166 | N40: &#166; | O40: &brvbar; | P40: Barre cassée verticale | R40: :%s/&#166;/¦/gie
C41: &Mu; | D41: $\\Mu\\$ | E41: :%s/&Mu;/$\\Mu\\$/gie | F41: &#924; | G41: &Mu; | H41: Mu majuscule | L41: § | M41: Alt+ 167 | N41: &#167; | O41: &sect; | P41: Paragraphe | R41: :%s/&#167;/§/gie
C42: &Nu; | D42: $\\Nu\\$ | E42: :%s/&Nu;/$\\Nu\\$/gie | F42: &#925; | G42: &Nu; | H42: Nu majuscule | L42: ¨ | M42: Alt+ 168 | N42: &#168; | O42: &uml; | P42: Diaérèse | R42: :%s/&#168;/¨/gie
C43: &Xi; | D43: $\\Xi\\$ | E43: :%s/&Xi;/$\\Xi\\$/gie | F43: &#926; | G43: &Xi; | H43: Xi majuscule | L43: © | M43: Alt+ 169 | N43: &#169; | O43: &copy; | P43: Signe de copyright | R43: :%s/&#169;/©/gie
C44: &Omicron; | D44: $\\Omicron\\$ | E44: :%s/&Omicron;/$\\Omicron\\$/gie | F44: &#927; | G44: &Omicron; | H44: Omicron majuscule | L44: ª | M44: Alt+ 170 | N44: &#170; | O44: &ordf; | P44: Indicateur ordinal féminin | R44: :%s/&#170;/ª/gie
C45: &Pi; | D45: $\\Pi\\$ | E45: :%s/&Pi;/$\\Pi\\$/gie | F45: &#928; | G45: &Pi; | H45: Pi majuscule | L45: « | M45: Alt+ 171 | N45: &#171; | O45: &laquo; | P45: Guillemets à la française (ouverts) | R45: :%s/&#171;/«/gie
C46: &Rho; | D46: $\\Rho\\$ | E46: :%s/&Rho;/$\\Rho\\$/gie | F46: &#929; | G46: &Rho; | H46: Rho majuscule | L46: ® | M46: Alt+ 174 | N46: &#174; | O46: &reg; | P46: Signe de marque déposée (Registered) | R46: :%s/&#174;/®/gie
C47: &Sigma; | D47: $\\Sigma\\$ | E47: :%s/&Sigma;/$\\Sigma\\$/gie | F47: &#931; | G47: &Sigma; | H47: Sigma majuscule | L47: ¯ | M47: Alt+ 175 | N47: &#175; | O47: &macr; | P47: Macron | R47: :%s/&#175;/¯/gie
C48: &Tau; | D48: $\\Tau\\$ | E48: :%s/&Tau;/$\\Tau\\$/gie | F48: &#932; | G48: &Tau; | H48: Tau majuscule | L48: ° | M48: Alt+ 176 | N48: &#176; | O48: &deg; | P48: Degré | R48: :%s/&#176;/°/gie
C49: &Upsilon; | D49: $\\Upsilon\\$ | E49: :%s/&Upsilon;/$\\Upsilon\\$/gie | F49: &#933; | G49: &Upsilon; | H49: Upsilon majuscule | L49: ± | M49: Alt+ 177 | N49: &#177; | O49: &plusmn; | P49: Signe plus-moins | R49: :%s/&#177;/±/gie
C50: &Phi; | D50: $\\Phi\\$ | E50: :%s/&Phi;/$\\Phi\\$/gie | F50: &#934; | G50: &Phi; | H50: Phi majuscule | L50: ² | M50: Alt+ 178 | N50: &#178; | O50: &sup2; | P50: Exposant deux | R50: :%s/&#178;/²/gie
C51: &Chi; | D51: $\\Chi\\$ | E51: :%s/&Chi;/$\\Chi\\$/gie | F51: &#935; | G51: &Chi; | H51: Chi majuscule | L51: ³ | M51: Alt+ 179 | N51: &#179; | O51: &sup3; | P51: Exposant trois | R51: :%s/&#179;/³/gie
C52: &Psi; | D52: $\\Psi\\$ | E52: :%s/&Psi;/$\\Psi\\$/gie | F52: &#936; | G52: &Psi; | H52: Psi majuscule | L52: ´ | M52: Alt+ 180 | N52: &#180; | O52: &aigu; | P52: Accent aigu | R52: :%s/&#180;/´/gie
C53: &Omega; | D53: $\\Omega\\$ | E53: :%s/&Omega;/$\\Omega\\$/gie | F53: &#937; | G53: &Omega; | H53: Omega majuscule | L53: µ | M53: Alt+ 181 | N53: &#181; | O53: &micro; | P53: Micro | R53: :%s/&#181;/µ/gie
L54: · | M54: Alt+ 183 | N54: &#183; | O54: &middot; | P54: Point médian | R54: :%s/&#183;/·/gie
L55: ¹ | M55: Alt+ 185 | N55: &#185; | O55: &sup1; | P55: Exposant un | R55: :%s/&#185;/¹/gie
L56: º | M56: Alt+ 186 | N56: &#186; | O56: &ordm; | P56: Indicateur ordinal masculin | R56: :%s/&#186;/º/gie
L57: » | M57: Alt+ 187 | N57: &#187; | O57: &raquo; | P57: Guillemets à la française (fermés) | R57: :%s/&#187;/»/gie
L58: ¼ | M58: Alt+ 188 | N58: &#188; | O58: &frac14; | P58: Fraction un quart | R58: :%s/&#188;/¼/gie
L59: ½ | M59: Alt+ 189 | N59: &#189; | O59: &frac12; | P59: Fraction un demi | R59: :%s/&#189;/½/gie
L60: ¾ | M60: Alt+ 190 | N60: &#190; | O60: &frac34; | P60: Fraction trois quarts | R60: :%s/&#190;/¾/gie
L61: ¿ | M61: Alt+ 191 | N61: &#191 | O61: &iquest; | P61: Point d'interrogation inversé | R61: :%s/&#191/¿/gie
L62: × | M62: Alt+ 215 | N62: &#215 | O62: &times; | P62: Signe de multiplication | R62: :%s/&#215/×/gie
L63: ÷ | M63: Alt+ 247 | N63: &#247 | O63: &divide; | P63: Signe de division | R63: :%s/&#247/÷/gie
L64: ∞ | M64: Alt+ 8734 | N64: &#8734; | O64: &infin; | P64: Infini | R64: :%s/&#8734;/∞/gie
L65: ‰ | M65: Alt+ 8240 | N65: &#8240; | O65: &permil; | P65: Pour mille | R65: :%s/&#8240;/‰/gie
L66: \\textsuperscript{TM} | M66: Alt+ 8482 | N66: &#8482; | O66: &trade; | P66: Signe de marque déposée (Registered Trademark) | R66: :%s/&#8482;/\\textsuperscript{TM}/gie

Sheet xcolor
A1: 1 | B1: 29 | D1: 1 | E1: =CHAR( D1) ->  | F1: 34 | G1: =CHAR( F1) -> " | H1: 67 | I1: =CHAR( H1) -> C | J1: 100 | K1: =CHAR( J1) -> d | L1: 133 | M1: =CHAR( L1) -> … | N1: 166 | O1: =CHAR( N1) -> ¦ | P1: 199 | Q1: =CHAR( P1) -> Ç | R1: 232 | S1: =CHAR( R1) -> è | T1: POUR VIM : | U1: Accent | V1: Aspect | W1: LaTeX | X1: HTML | Y1: méta | Z1: compose | AD1: Nom de l'accent | AE1: Lettre | AF1: HTML
A2: 2 | B2: 30 | D2: 2 | E2:  | F2: 35 | G2: =CHAR( F2) -> # | H2: 68 | I2: =CHAR( H2) -> D | J2: 101 | K2: =CHAR( J2) -> e | L2: 134 | M2: =CHAR( L2) -> † | N2: 167 | O2: =CHAR( N2) -> § | P2: 200 | Q2: =CHAR( P2) -> È | R2: 233 | S2: =CHAR( R2) -> é | T2: =CONCATENATE(":%s/",V2,"/\",W2,"/ge") -> :%s//\/ge | U2: paragraphe | V2:  | X2: &para; | Y2: M-' | Z2: C s o | AD2: a accent grave | AE2: à | AF2: &agrave; | AG2: à | AH2: =CONCATENATE(":%s/",AF2,"/",AG2,"/gie") -> :%s/&agrave;/à/gie
A3: 3 | B3: 31 | D3: 3 | E3:  | F3: 36 | G3: =CHAR( F3) -> $ | H3: 69 | I3: E | J3: 102 | K3: =CHAR( J3) -> f | L3: 135 | M3: =CHAR( L3) -> ‡ | N3: 168 | O3: =CHAR( N3) -> ¨ | P3: 201 | Q3: =CHAR( P3) -> É | R3: 234 | S3: ê | T3: =CONCATENATE(":%s/",V3,"/\",W3,"/ge") -> :%s/«/\<</ge | U3: guillemet français ouvrant | V3: « | W3: << | X3: &laquo; | Y3: M-+ | Z3: C < < | AD3: A accent grave | AE3: À | AF3: &Agrave; | AG3: À | AH3: =CONCATENATE(":%s/",AF3,"/",AG3,"/gie") -> :%s/&Agrave;/À/gie
A4: 4 | B4: 32 | D4: 4 | E4:  | F4: 37 | G4: % | H4: 70 | I4: F | J4: 103 | K4: =CHAR( J4) -> g | L4: 136 | M4: =CHAR( L4) -> ˆ | N4: 169 | O4: =CHAR( N4) -> © | P4: 202 | Q4: =CHAR( P4) -> Ê | R4: 235 | S4: ë | T4: :%s/»/\>>/ge | U4: guillemet français fermant | V4: » | W4: >> | X4: &raquo; | Y4: M-; | Z4: C > > | AD4: a accent aigu | AE4: á | AF4: &aacute; | AG4: á | AH4: :%s/&aacute;/á/gie
A5: 5 | B5: 33 | D5: 5 | E5:  | F5: 38 | G5: & | H5: 71 | I5: G | J5: 104 | K5: =CHAR( J5) -> h | L5: 137 | M5: =CHAR( L5) -> ‰ | N5: 170 | O5: =CHAR( N5) -> ª | P5: 203 | Q5: =CHAR( P5) -> Ë | R5: 236 | S5: ì | T5: :%s/á/\\'a/ge | U5: a accent aigu | V5: á | W5: \'a | X5: &aacute; | Y5: M-a | Z5: C ' a | AD5: A accent aigu | AE5: Á | AF5: &Aacute; | AG5: Á | AH5: :%s/&Aacute;/Á/gie
A6: 6 | B6: 34 | D6: 6 | E6:  | F6: 39 | G6: ' | H6: 72 | I6: H | J6: 105 | K6: =CHAR( J6) -> i | L6: 138 | M6: =CHAR( L6) -> Š | N6: 171 | O6: =CHAR( N6) -> « | P6: 204 | Q6: =CHAR( P6) -> Ì | R6: 237 | S6: í | T6: :%s/à/\\`a/ge | U6: a accent grave | V6: à | W6: \`a | X6: &agrave; | Y6: M-` | Z6: C ` a | AD6: a accent circonflexe | AE6: â | AF6: &acirc; | AG6: â | AH6: :%s/&acirc;/â/gie
A7: 7 | B7: 35 | D7: 7 | E7:  | F7: 40 | G7: ( | H7: 73 | I7: I | J7: 106 | K7: =CHAR( J7) -> j | L7: 139 | M7: =CHAR( L7) -> ‹ | N7: 172 | O7: =CHAR( N7) -> ¬ | P7: 205 | Q7: =CHAR( P7) -> Í | R7: 238 | S7: î | T7: :%s/â/\\^a/ge | U7: a accent circonflexe | V7: â | W7: \^a | X7: &acirc; | Y7: M-b | Z7: C ^ a | AD7: A accent circonflexe | AE7: Â | AF7: &Acirc; | AG7: Â | AH7: :%s/&Acirc;/Â/gie
A8: 8 | B8: 36 | D8: 8 | E8:  | F8: 41 | G8: ) | H8: 74 | I8: J | J8: 107 | K8: =CHAR( J8) -> k | L8: 140 | M8: =CHAR( L8) -> Œ | N8: 173 | O8: =CHAR( N8) -> ­ | P8: 206 | Q8: =CHAR( P8) -> Î | R8: 239 | S8: ï | T8: :%s/ä/\\"a/ge | U8: a tréma | V8: ä | W8: \"a | X8: &auml; | Y8: M-d | Z8: C " a | AD8: a tilde | AE8: ã | AF8: &atilde; | AG8: ã | AH8: :%s/&atilde;/ã/gie
A9: 9 | B9: 37 | D9: 9 | F9: 42 | G9: * | H9: 75 | I9: K | J9: 108 | K9: =CHAR( J9) -> l | L9: 141 | M9: =CHAR( L9) ->  | N9: 174 | O9: =CHAR( N9) -> ® | P9: 207 | Q9: =CHAR( P9) -> Ï | R9: 240 | S9: ð | T9: :%s/Ä/\\"A/ge | U9: A tréma | V9: Ä | W9: \"A | X9: &Auml; | Y9: M-D | Z9: C " A | AD9: A tilde | AE9: Ã | AF9: &Atilde; | AG9: Ã | AH9: :%s/&Atilde;/Ã/gie
A10: 10 | B10: 38 | D10: 10 | F10: 43 | G10: + | H10: 76 | I10: L | J10: 109 | K10: =CHAR( J10) -> m | L10: 142 | M10: =CHAR( L10) -> Ž | N10: 175 | O10: =CHAR( N10) -> ¯ | P10: 208 | Q10: =CHAR( P10) -> Ð | R10: 241 | S10: ñ | T10: :%s/å/\\aa/ge | U10: a rond | V10: å | W10: \aa | X10: &aring; | Y10: M-e | Z10: C * a | AD10: a tréma | AE10: ä | AF10: &auml; | AG10: ä | AH10: :%s/&auml;/ä/gie
A11: 11 | B11: 39 | D11: 11 | F11: 44 | G11: , | H11: 77 | I11: M | J11: 110 | K11: =CHAR( J11) -> n | L11: 143 | M11: =CHAR( L11) ->  | N11: 176 | O11: =CHAR( N11) -> ° | P11: 209 | Q11: =CHAR( P11) -> Ñ | R11: 242 | S11: ò | T11: :%s/Å/\\AA/ge | U11: A rond | V11: Å | W11: \AA | X11: &Aring; | Y11: M-E | Z11: C * A | AD11: A tréma | AE11: Ä | AF11: &Auml; | AG11: Ä | AH11: :%s/&Auml;/Ä/gie
A12: 12 | B12: 40 | D12: 12 | F12: 45 | G12: - | H12: 78 | I12: N | J12: 111 | K12: =CHAR( J12) -> o | L12: 144 | M12: =CHAR( L12) ->  | N12: 177 | O12: =CHAR( N12) -> ± | P12: 210 | Q12: =CHAR( P12) -> Ò | R12: 243 | S12: ó | T12: :%s/æ/\\ae/ge | U12: ae ligaturé | V12: æ | W12: \ae | X12: &aelig; | Y12: M-f | Z12: C a e | AD12: a rond | AE12: å | AF12: &aring; | AG12: å | AH12: :%s/&aring;/å/gie
A13: 13 | B13: 41 | D13: 13 | F13: 46 | G13: . | H13: 79 | I13: O | J13: 112 | K13: =CHAR( J13) -> p | L13: 145 | M13: =CHAR( L13) -> ‘ | N13: 178 | O13: =CHAR( N13) -> ² | P13: 211 | Q13: =CHAR( P13) -> Ó | R13: 244 | S13: ô | T13: :%s/Æ/\\AE/ge | U13: AE ligaturé | V13: Æ | W13: \AE | X13: &AElig; | Y13: M-F | Z13: C A E | AD13: A rond | AE13: Å | AF13: &Aring; | AG13: Å | AH13: :%s/&Aring;/Å/gie
A14: 14 | B14: 42 | D14: 14 | E14:  | F14: 47 | G14: / | H14: 80 | I14: P | J14: 113 | K14: =CHAR( J14) -> q | L14: 146 | M14: =CHAR( L14) -> ’ | N14: 179 | O14: =CHAR( N14) -> ³ | P14: 212 | Q14: =CHAR( P14) -> Ô | R14: 245 | S14: õ | T14: :%s/c/\/ge | U14: copyright | V14: c | X14: &copy; | Y14: M-) | Z14: C c 0 | AD14: ae ligaturé | AE14: æ | AF14: &aelig; | AG14: æ | AH14: :%s/&aelig;/æ/gie
A15: 15 | B15: 43 | D15: 15 | E15:  | F15: 48 | G15: 0 | H15: 81 | I15: Q | J15: 114 | K15: =CHAR( J15) -> r | L15: 147 | M15: =CHAR( L15) -> “ | N15: 180 | O15: =CHAR( N15) -> ´ | P15: 213 | Q15: =CHAR( P15) -> Õ | R15: 246 | S15: ö | T15: :%s/ç/\\c c/ge | U15: c cédille | V15: ç | W15: \c c | X15: &ccedil; | Y15: M-g | Z15: C , c | AD15: AE ligaturé | AE15: Æ | AF15: &AElig; | AG15: Æ | AH15: :%s/&AElig;/Æ/gie
A16: 16 | B16: 44 | D16: 16 | E16:  | F16: 49 | G16: 1 | H16: 82 | I16: R | J16: 115 | K16: =CHAR( J16) -> s | L16: 148 | M16: =CHAR( L16) -> ” | N16: 181 | O16: =CHAR( N16) -> µ | P16: 214 | Q16: =CHAR( P16) -> Ö | R16: 247 | S16: ÷ | T16: :%s/Ç/\\c C/ge | U16: C cédille | V16: Ç | W16: \c C | X16: &Ccedil; | Y16: M-G | Z16: C , C | AD16: e accent grave | AE16: è | AF16: &egrave; | AG16: è | AH16: :%s/&egrave;/è/gie
A17: 17 | B17: 45 | D17: 17 | E17:  | F17: 50 | G17: 2 | H17: 83 | I17: S | J17: 116 | K17: =CHAR( J17) -> t | L17: 149 | M17: =CHAR( L17) -> • | N17: 182 | O17: =CHAR( N17) -> ¶ | P17: 215 | Q17: =CHAR( P17) -> × | R17: 248 | S17: ø | T17: :%s/E/\\"E/ge | U17: E tréma | V17: E | W17: \"E | X17: &Euml; | Y17: M-K | Z17: C " E | AD17: E accent grave | AE17: È | AF17: &Egrave; | AG17: È | AH17: :%s/&Egrave;/È/gie
A18: 18 | B18: 46 | D18: 18 | E18: =CHAR( D18) ->  | F18: 51 | G18: 3 | H18: 84 | I18: T | J18: 117 | K18: =CHAR( J18) -> u | L18: 150 | M18: =CHAR( L18) -> – | N18: 183 | O18: =CHAR( N18) -> · | P18: 216 | Q18: =CHAR( P18) -> Ø | R18: 249 | S18: ù | T18: :%s/é/\\'e/ge | U18: e accent aigu | V18: é | W18: \'e | X18: &eacute; | Y18: M-i | Z18: C ' e | AD18: e accent aigu | AE18: é | AF18: &eacute; | AG18: é | AH18: :%s/&eacute;/é/gie
A19: 19 | B19: 47 | D19: 19 | E19: =CHAR( D19) ->  | F19: 52 | G19: 4 | H19: 85 | I19: U | J19: 118 | K19: =CHAR( J19) -> v | L19: 151 | M19: =CHAR( L19) -> — | N19: 184 | O19: =CHAR( N19) -> ¸ | P19: 217 | Q19: =CHAR( P19) -> Ù | R19: 250 | S19: ú | T19: :%s/É/\\'E/ge | U19: E accent aigu | V19: É | W19: \'E | X19: &Eacute; | Y19: M-I | Z19: C ' E | AD19: E accent aigu | AE19: É | AF19: &Eacute; | AG19: É | AH19: :%s/&Eacute;/É/gie
A20: 20 | B20: 48 | D20: 20 | E20:  | F20: 53 | G20: 5 | H20: 86 | I20: V | J20: 119 | K20: =CHAR( J20) -> w | L20: 152 | M20: =CHAR( L20) -> ˜ | N20: 185 | O20: =CHAR( N20) -> ¹ | P20: 218 | Q20: =CHAR( P20) -> Ú | R20: 251 | S20: û | T20: :%s/è/\\`e/ge | U20: e accent grave | V20: è | W20: \`e | X20: &egrave; | Y20: M-h | Z20: C ` e | AD20: e accent circonflexe | AE20: ê | AF20: &ecirc; | AG20: ê | AH20: :%s/&ecirc;/ê/gie
A21: 21 | B21: 49 | D21: 21 | E21:  | F21: 54 | G21: 6 | H21: 87 | I21: W | J21: 120 | K21: =CHAR( J21) -> x | L21: 153 | M21: =CHAR( L21) -> ™ | N21: 186 | O21: =CHAR( N21) -> º | P21: 219 | Q21: =CHAR( P21) -> Û | R21: 252 | S21: ü | T21: :%s/ê/\\^e/ge | U21: e accent circonflexe | V21: ê | W21: \^e | X21: &ecirc; | Y21: M-j | Z21: C ^ e | AD21: E accent circonflexe | AE21: Ê | AF21: &Ecirc; | AG21: Ê | AH21: :%s/&Ecirc;/Ê/gie
A22: 22 | B22: 50 | D22: 22 | E22:  | F22: 55 | G22: 7 | H22: 88 | I22: X | J22: 121 | K22: =CHAR( J22) -> y | L22: 154 | M22: =CHAR( L22) -> š | N22: 187 | O22: =CHAR( N22) -> » | P22: 220 | Q22: =CHAR( P22) -> Ü | R22: 253 | S22: ý | T22: :%s/ë/\\"e/ge | U22: e tréma | V22: ë | W22: \"e | X22: &euml; | Y22: M-k | Z22: C " e | AD22: e tréma | AE22: ë | AF22: &euml; | AG22: ë | AH22: :%s/&euml;/ë/gie
A23: 23 | B23: 51 | D23: 23 | E23:  | F23: 56 | G23: 8 | H23: 89 | I23: Y | J23: 122 | K23: =CHAR( J23) -> z | L23: 155 | M23: =CHAR( L23) -> › | N23: 188 | O23: =CHAR( N23) -> ¼ | P23: 221 | Q23: =CHAR( P23) -> Ý | R23: 254 | S23: þ | T23: :%s/í/\\'i/ge | U23: i accent aigu | V23: í | W23: \'i | X23: &iacute; | Y23: M-m | Z23: C ' i | AD23: E tréma | AE23: Ë | AF23: &Euml; | AG23: Ë | AH23: :%s/&Euml;/Ë/gie
A24: 24 | B24: 52 | D24: 24 | E24:  | F24: 57 | G24: 9 | H24: 90 | I24: Z | J24: 123 | K24: =CHAR( J24) -> { | L24: 156 | M24: =CHAR( L24) -> œ | N24: 189 | O24: =CHAR( N24) -> ½ | P24: 222 | Q24: =CHAR( P24) -> Þ | R24: 255 | S24: ÿ | T24: :%s/ì/\\`i/ge | U24: i accent grave | V24: ì | W24: \`i | X24: &igrave; | Y24: M-l | Z24: C ` i | AD24: i accent grave | AE24: ì | AF24: &igrave; | AG24: ì | AH24: :%s/&igrave;/ì/gie
A25: 25 | B25: 53 | D25: 25 | E25:  | F25: 58 | G25: : | H25: 91 | I25: [ | J25: 124 | K25: =CHAR( J25) -> | | L25: 157 | M25: =CHAR( L25) ->  | N25: 190 | O25: =CHAR( N25) -> ¾ | P25: 223 | Q25: =CHAR( P25) -> ß | R25: 255 lettres de l'alphabet : | T25: :%s/î/\\^i/ge | U25: i accent circonflexe | V25: î | W25: \^i | X25: &icirc; | Y25: M-n | Z25: C ^ i | AD25: I accent grave | AE25: Ì | AF25: &Igrave; | AG25: Ì | AH25: :%s/&Igrave;/Ì/gie
A26: 26 | B26: 54 | D26: 26 | E26:  | F26: 59 | G26: ; | H26: 92 | I26: \ | J26: 125 | K26: =CHAR( J26) -> } | L26: 158 | M26: =CHAR( L26) -> ž | N26: 191 | O26: =CHAR( N26) -> ¿ | P26: 224 | Q26: =CHAR( P26) -> à | T26: :%s/ï/\\"i/ge | U26: i tréma | V26: ï | W26: \"i | X26: &iuml; | Y26: M-o | Z26: C " i | AD26: i accent aigu | AE26: í | AF26: &iacute; | AG26: í | AH26: :%s/&iacute;/í/gie
A27: 27 | B27: 55 | D27: 27 | E27:  | F27: 60 | G27: < | H27: 93 | I27: ] | J27: 126 | K27: =CHAR( J27) -> ~ | L27: 159 | M27: =CHAR( L27) -> Ÿ | N27: 192 | O27: =CHAR( N27) -> À | P27: 225 | Q27: =CHAR( P27) -> á | T27: :%s/ñ/\\~n/ge | U27: n tilde | V27: ñ | W27: \~n | X27: &ntilde; | Y27: M-q | Z27: C ~ n | AD27: I accent aigu | AE27: Í | AF27: &Iacute; | AG27: Í | AH27: :%s/&Iacute;/Í/gie
A28: 28 | B28: 56 | D28: 28 | E28: =CHAR( D28) ->  | F28: 61 | G28: = | H28: 94 | I28: ^ | J28: 127 | K28: =CHAR( J28) ->  | L28: 160 | M28: =CHAR( L28) ->  | N28: 193 | O28: =CHAR( N28) -> Á | P28: 226 | Q28: =CHAR( P28) -> â | R28: VBA : | S28: CHR | T28: :%s/Ñ/\\~N/ge | U28: N tilde | V28: Ñ | W28: \~N | X28: &Ntilde; | Y28: M-Q | Z28: C ~ N | AD28: i accent circonflexe | AE28: î | AF28: &icirc; | AG28: î | AH28: :%s/&icirc;/î/gie
D29: 29 | F29: 62 | G29: > | H29: 95 | I29: _ | J29: 128 | K29: =CHAR( J29) -> € | L29: 161 | M29: =CHAR( L29) -> ¡ | N29: 194 | O29: =CHAR( N29) -> Â | P29: 227 | Q29: =CHAR( P29) -> ã | T29: :%s/ó/\\'o/ge | U29: o accent aigu | V29: ó | W29: \'o | X29: &oacute; | Y29: M-s | Z29: C ' o | AD29: I accent circonflexe | AE29: Î | AF29: &Icirc; | AG29: Î | AH29: :%s/&Icirc;/Î/gie
D30: 30 | F30: 63 | G30: ? | H30: 96 | I30: ` | J30: 129 | K30: =CHAR( J30) ->  | L30: 162 | M30: =CHAR( L30) -> ¢ | N30: 195 | O30: =CHAR( N30) -> Ã | P30: 228 | Q30: =CHAR( P30) -> ä | R30: Excel Fr : | S30: CAR(i) | T30: :%s/ò/\\`o/ge | U30: o accent grave | V30: ò | W30: \`o | X30: &ograve; | Y30: M-r | Z30: C ` o | AD30: i tréma | AE30: ï | AF30: &iuml; | AG30: ï | AH30: :%s/&iuml;/ï/gie
D31: 31 | F31: 64 | G31: @ | H31: 97 | I31: a | J31: 130 | K31: =CHAR( J31) -> ‚ | L31: 163 | M31: =CHAR( L31) -> £ | N31: 196 | O31: =CHAR( N31) -> Ä | P31: 229 | Q31: =CHAR( P31) -> å | R31: Excel GB : | S31: CHAR(i) | T31: :%s/ô/\\^o/ge | U31: o accent circonflexe | V31: ô | W31: \^o | X31: &ocirc; | Y31: M-t | Z31: C ^ o | AD31: I tréma | AE31: Ï | AF31: &Iuml; | AG31: Ï | AH31: :%s/&Iuml;/Ï/gie
D32: 32 | F32: 65 | G32: A | H32: 98 | I32: b | J32: 131 | K32: =CHAR( J32) -> ƒ | L32: 164 | M32: =CHAR( L32) -> ¤ | N32: 197 | O32: =CHAR( N32) -> Å | P32: 230 | Q32: =CHAR( P32) -> æ | T32: :%s/ö/\\"o/ge | U32: o tréma | V32: ö | W32: \"o | X32: &ouml; | Y32: M-v | Z32: C " o | AD32: o accent grave | AE32: ò | AF32: &ograve; | AG32: ò | AH32: :%s/&ograve;/ò/gie
D33: 33 | E33: ! | F33: 66 | G33: B | H33: 99 | I33: c | J33: 132 | K33: =CHAR( J33) -> „ | L33: 165 | M33: =CHAR( L33) -> ¥ | N33: 198 | O33: =CHAR( N33) -> Æ | P33: 231 | Q33: =CHAR( P33) -> ç | T33: :%s/Ö/\\"O/ge | U33: O tréma | V33: Ö | W33: \"O | X33: &Ouml; | Y33: M-V | Z33: C " O | AD33: O accent grave | AE33: Ò | AF33: &Ograve; | AG33: Ò | AH33: :%s/&Ograve;/Ò/gie
T34: :%s/ß/\\ss/ge | U34: double s allemand | V34: ß | W34: \ss | X34: &szlig; | Y34: M-_ | Z34: C s s | AD34: o accent aigu | AE34: ó | AF34: &oacute; | AG34: ó | AH34: :%s/&oacute;/ó/gie
T35: :%s/ú/\\'u/ge | U35: u accent aigu | V35: ú | W35: \'u | X35: &uacute; | Y35: M-z | Z35: C ' u | AD35: O accent aigu | AE35: Ó | AF35: &Oacute; | AG35: Ó | AH35: :%s/&Oacute;/Ó/gie
T36: :%s/ù/\\`u/ge | U36: u accent grave | V36: ù | W36: \`u | X36: &ugrave; | Y36: M-y | Z36: C ` u | AD36: o accent circonflexe | AE36: ô | AF36: &ocirc; | AG36: ô | AH36: :%s/&ocirc;/ô/gie
T37: :%s/û/\\^u/ge | U37: u accent circonflexe | V37: û | W37: \^u | X37: &ucirc; | Y37: M-{ | Z37: C ^ u | AD37: O accent circonflexe | AE37: Ô | AF37: &Ocirc; | AG37: Ô | AH37: :%s/&Ocirc;/Ô/gie
T38: :%s/ü/\\"u/ge | U38: u tréma | V38: ü | W38: \"u | X38: &uuml; | Y38: M-| | Z38: C " u | AD38: o tilde | AE38: õ | AF38: &otilde; | AG38: õ | AH38: :%s/&otilde;/õ/gie
T39: :%s/Ü/\\"/ge | U39: U tréma | V39: Ü | W39: \" | X39: &Uuml; | Y39: M-\ | Z39: C " U | AD39: O tilde | AE39: Õ | AF39: &Otilde; | AG39: Õ | AH39: :%s/&Otilde;/Õ/gie
AD40: o tréma | AE40: ö | AF40: &ouml; | AG40: ö | AH40: :%s/&ouml;/ö/gie
AD41: O tréma | AE41: Ö | AF41: &Ouml; | AG41: Ö | AH41: :%s/&Ouml;/Ö/gie
AD42: o barré | AE42: ø | AF42: &oslash; | AG42: ø | AH42: :%s/&oslash;/ø/gie
AD43: O barré | AE43: Ø | AF43: &Oslash; | AG43: Ø | AH43: :%s/&Oslash;/Ø/gie
AD44: u accent grave | AE44: ù | AF44: &ugrave; | AG44: ù | AH44: :%s/&ugrave;/ù/gie
AD45: U accent grave | AE45: Ù | AF45: &Ugrave; | AG45: Ù | AH45: :%s/&Ugrave;/Ù/gie
AD46: u accent aigu | AE46: ú | AF46: &uacute; | AG46: ú | AH46: :%s/&uacute;/ú/gie
AD47: U accent aigu | AE47: Ú | AF47: &Uacute; | AG47: Ú | AH47: :%s/&Uacute;/Ú/gie
AD48: u accent circonflexe | AE48: û | AF48: &ucirc; | AG48: û | AH48: :%s/&ucirc;/û/gie
AD49: U accent circonflexe | AE49: Û | AF49: &Ucirc; | AG49: Û | AH49: :%s/&Ucirc;/Û/gie
AD50: u tréma | AE50: ü | AF50: &uuml; | AG50: ü | AH50: :%s/&uuml;/ü/gie
AD51: U tréma | AE51: Ü | AF51: &Uuml; | AG51: Ü | AH51: :%s/&Uuml;/Ü/gie
AD52: n tilde | AE52: ñ | AF52: &ntilde; | AG52: ñ | AH52: :%s/&ntilde;/ñ/gie
AD53: N tilde | AE53: Ñ | AF53: &Ntilde; | AG53: Ñ | AH53: :%s/&Ntilde;/Ñ/gie
AD54: c cédille | AE54: ç | AF54: &ccedil; | AG54: ç | AH54: :%s/&ccedil;/ç/gie
AD55: C cédille | AE55: Ç | AF55: &Ccedil; | AG55: Ç | AH55: :%s/&Ccedil;/Ç/gie
AD56: y accent aigu | AE56: ý | AF56: &yacute; | AG56: ý | AH56: :%s/&yacute;/ý/gie
AD57: Y accent aigu | AE57: Ý | AF57: &Yacute; | AG57: Ý | AH57: :%s/&Yacute;/Ý/gie
AD58: double s allemand | AE58: ß | AF58: &szlig; | AG58: ß | AH58: :%s/&szlig;/ß/gie
AD59: guillemet français ouvrant | AE59: « | AF59: &laquo; | AG59: « | AH59: :%s/&laquo;/«/gie
AD60: guillemet français fermant | AE60: » | AF60: &raquo; | AG60: » | AH60: :%s/&raquo;/»/gie
AD61: esperluette | AE61: & | AF61: &amp; | AG61: & | AH61: :%s/&amp;/&/gie
AD62: inférieur | AE62: < | AF62: &lt; | AG62: < | AH62: :%s/&lt;/</gie
AD63: supérieur | AE63: < | AF63: &gt; | AG63: < | AH63: :%s/&gt;/</gie
AD64: guillemet double | AE64: " | AF64: &quot; | AG64: " | AH64: :%s/&quot;/"/gie
AD65: paragraphe | AE65: § | AF65: &para; | AG65: § | AH65: :%s/&para;/§/gie
AD66: copyright | AE66: © | AF66: &copy; | AG66: © | AH66: :%s/&copy;/©/gie
AD67: espace blanc | AF67: &nbsp; | AH67: =CONCATENATE(":%s/",AF67,"/ /gie") -> :%s/&nbsp;/ /gie

Sheet La-Chaine
A1: catégorie_Cha | B1: La-Chaine | C1: =CONCATENATE(" <!-- question XLQ ", titre_Cha, "-->") -> <!-- question XLQ La-Chaine_Cha--> | F1: Valeur Mini_Cha | G1: Valeur Maxi_Cha | H1: Sig. Digit_Cha | I1: Val Choix_Cha
B2: La-Chaine_Cha | C2: =CONCATENATE(" <question type=",CHAR(34),"category",CHAR(34),"><category><text>", categorie_Cha,"</text></category></question>)") -> <question type="category"><category><text>La-Chaine</text></category></question>) | E2: V1.LongA_Cha | F2: 1 | G2: 10 | H2: 0 | I2: =RANDBETWEEN(ValMini_Cha*10^-SigDig_Cha, ValMaxi_Cha*10^-SigDig_Cha)/10^-SigDig_Cha+ROUND(RAND()/3,1) -> 10.2
A3: Tag_Cha | B3: La-Chaine_Cha | C3: <question type="cloze"> | E3: V2.ProbaA_Cha | F3: 0.1 | G3: 0.9 | H3: -1 | I3: =RANDBETWEEN(ValMini_Cha*10^-SigDig_Cha, ValMaxi_Cha*10^-SigDig_Cha)/10^-SigDig_Cha -> 0.2 | CA3: <p>Une chaine de longueur #1#m &agrave; une probabilit&eacute; de rupture de #2#. En d&eacute;duire la probabilit&eacute; de rupture de cette une m&ecirc;me chaine avec une longueur de #3#m. R&eacute;ponse : $1$</p><p><p>&nbsp;</p><p>
A4: idnumber_Cha | B4: =TEXT(NOW(),"aammjj-hhmmss.00") -> 210710-212021.20 | C4: =CONCATENATE(" <name><text>", titre_Cha, "</text></name>") -> <name><text>La-Chaine_Cha</text></name> | E4: V3.LongB_Cha | F4: 2 | G4: 10 | H4: 0 | I4: =RANDBETWEEN(ValMini_Cha*10^-SigDig_Cha, ValMaxi_Cha*10^-SigDig_Cha)/10^-SigDig_Cha-ROUND(RAND()/3,1)-0.1 -> 1.8
A5: points_Cha | B5: 1 | C5: <questiontext format="html">
A6: tolérance_Cha | B6: 0.05 | C6: =CONCATENATE(" <text><![CDATA[<p>", question_Cha, "</p>]]></text>") -> <text><![CDATA[<p> Une chaine de longueur 10.2m &agrave; une probabilit&eacute; de rupture de 0.2. En d&eacute;duire la probabilit&eacute; de rupture de cette une m&ecirc;me chaine avec une longueur de 1.8m. R&eacute;ponse: {1:NUMERICAL:=3.86E-02:1.93E-03}</p><p><p>&nbsp;</p><p></p>]]></text> | F6: Cible_Cha | G6: Toler_Cha | H6: PointsQuestion_Cha
A7: penalité_Cha | B7: 0.1 | C7: </questiontext> | E7: R1.ProbaB_Cha | F7: =1-(1-V2.ProbaA_Cha)^(V3.LongB_Cha/V1.LongA_Cha) -> 0.03861302711 | G7: =tolerance_Cha*ValMini_Cha -> 0.001930651356 | H7: 1 | I7: =CONCATENATE("{",PointsQuestion_Cha,":NUMERICAL:=",TEXT(Cible_Cha,"0.00E+00"),":",TEXT(ABS(Tolere_Cha),"0.00E+00"),"}") -> {1:NUMERICAL:=3.86E-02:1.93E-03}
A8: feedback_Cha | B8: _ | C8: =CONCATENATE(" <defaultgrade>",points_Cha,"</defaultgrade><generalfeedback><text>",feedback_Cha,"</text></generalfeedback><penalty>",penalty_Cha,"</penalty><hidden>0</hidden>)") -> <defaultgrade>1</defaultgrade><generalfeedback><text>_</text></generalfeedback><penalty>0.1</penalty><hidden>0</hidden>) | I8: =SUM(F7:H7) -> 1.040543678
A9: Cellule vides_Cha | B9: =COUNTBLANK(B1:B8) -> 0 | C9: =CONCATENATE(" <idnumber>",idnumber_Cha,"</idnumber><tags><tag><text>",Tag_Cha,"</text></tag></tags>") -> <idnumber>210710-212021.20</idnumber><tags><tag><text>La-Chaine_Cha</text></tag></tags>
A10: question format HTML_Cha | B10: =CONCATENATE(" ",B19,B20,B21) -> Une chaine de longueur 10.2m &agrave; une probabilit&eacute; de rupture de 0.2. En d&eacute;duire la probabilit&eacute; de rupture de cette une m&ecirc;me chaine avec une longueur de 1.8m. R&eacute;ponse: {1:NUMERICAL:=3.86E-02:1.93E-03}</p><p><p>&nbsp;</p><p> | C10: </question>
A11: Repere Var Rep | B11: _Cha
A12: HTML File | B12: =CONCATENATE(categorie_Cha,"_HTML.txt") -> La-Chaine_HTML.txt
A13: Valide ? | B13: =AND(ISNUMBER(I8),V1.LongA_Cha<>V3.LongB_Cha) -> TRUE
A14: https://html-online.com/editor/
C15: 5
A16: Var : | B16: # | C16: 3
A17: Res : | B17: $ | C17: 1
B19: =CONCATENATE("Une chaine de longueur ",V1.LongA_Cha,"m &agrave; une probabilit&eacute; de rupture de ",V2.ProbaA_Cha,". En d&eacute;duire la probabilit&eacute; de rupture de cette une m&ecirc;me chaine avec une longueur de ",V3.LongB_Cha,"m. R&eacute;ponse") -> Une chaine de longueur 10.2m &agrave; une probabilit&eacute; de rupture de 0.2. En d&eacute;duire la probabilit&eacute; de rupture de cette une m&ecirc;me chaine avec une longueur de 1.8m. R&eacute;ponse | C19: <p>Une chaine de longueur #1#m &agrave; une probabilit&eacute; de rupture de #2#. En d&eacute;duire la probabilit&eacute; de rupture de cette une m&ecirc;me chaine avec une longueur de #3#m. R&eacute;ponse : $1$</p>
B20: =CONCATENATE(": ",R1.ProbaB_Cha,"</p><p><p>&nbsp;</p><p>") -> : {1:NUMERICAL:=3.86E-02:1.93E-03}</p><p><p>&nbsp;</p><p> | C20: <p>&nbsp;</p>
B21: =CONCATENATE("") -> 
M23: =CONCATENATE("Une chaine de longueur ",V1.LongA_Cha,"m à une probabilité de rupture de ",V2.ProbaA_Cha,". En déduire la probabilité de rupture de cette une même chaine avec une longueur de ",V3.LongB_Cha,"m. Réponse") -> Une chaine de longueur 10.2m à une probabilité de rupture de 0.2. En déduire la probabilité de rupture de cette une même chaine avec une longueur de 1.8m. Réponse
M24: =CONCATENATE(" \formsol{$1-(1-p_A)^{(L_B/L_A)}$} \minisol{",ROUND(F7,3),"}") -> \formsol{$1-(1-p_A)^{(L_B/L_A)}$} \minisol{0.039}
C41: : ",R1.ProbaB_Cha,"</p><p><p>&nbsp;</p><p>

Sheet Griffith
A1: feedback_Gri | B1: Griffith | C1: =CONCATENATE(" <!-- question XLQ ", titre_Gri, "-->") -> <!-- question XLQ Griffith_Gri--> | F1: Valeur Mini_Gri | G1: Valeur Maxi_Gri | H1: Sig. Digit_Gri | I1: Val Choix_Gri
B2: Griffith_Gri | C2: =CONCATENATE(" <question type=",CHAR(34),"category",CHAR(34),"><category><text>", categorie_Gri,"</text></category></question>)") -> <question type="category"><category><text>Griffith</text></category></question>) | E2: V1.E_Gri | F2: 65 | G2: 75 | H2: 0 | I2: =RANDBETWEEN(ValMini_Gri*10^-SigDig_Gri, ValMaxi_Gri*10^-SigDig_Gri)/10^-SigDig_Gri -> 75 | J2: Gpa | K2: 74 | P2: 70 | R2: E= | S2: 70000000000 | T2: Pa
A3: Tag_Gri | B3: Griffith_Gri | C3: <question type="cloze"> | E3: V2.Rm_Gri | F3: 50 | G3: 90 | H3: 0 | I3: 52 | J3: Mpa | K3: 75 | P3: 66 | R3: Energie surf | S3: 0.2 | T3: J/m2 | CA3: Une plaque est réalisée en verre ordinaire dont les propriétés sont les suivantes :<p>E = #1# GPa ; Rm = #2# MPa ; gammas = 0,2 J/m2<p>Cette plaque est rectangulaire de dimension :<p>Hauteur = #3# mm; Largeur = #4# mm, Epaisseur = #5# mm;<p>Elle contient, à sa surface, une fissure grossière de caracteristique :<p>profondeur = #6# mm; rayon de courbure en tête de fissure = #7# nm<p>a. Dans ces conditions de chargement de la plaque entaillée calculer la contrainte maximale tolérable selon le critère énergétique de Griffith : \formsol{$$}\minisol{} MPa<p>b. Quelle est la concentration de contrainte induite par l'entaille ? \formsol{$$}\minisol{} [SD]<p>c. Quelle est la contrainte tolérable selon le critère mécanique de Griffith ? \formsol{$$}\minisol{} MPa<p>d. Sous quelle force verticale aura lieu la rupture ? \formsol{$$}\minisol{} kN.<p>Une plaque est réalisée en verre ordinaire dont les propriétés sont les suivantes :<p>E = "",V1.E_Gri,"" GPa ; Rm = "",V2.Rm_Gri,"" MPa ; γS = 0,2 J/m2<p>Cette plaque est rectangulaire de dimension :<p>Hauteur = "",V3.Gamma_Gri,"" mm; Largeur<p>
A4: idnumber_Gri | B4: =TEXT(NOW(),"aammjj-hhmmss.00") -> 210710-212021.20 | C4: =CONCATENATE(" <name><text>", titre_Gri, "</text></name>") -> <name><text>Griffith_Gri</text></name> | E4: V3.Gamma_Gri | F4: 0.1 | G4: 0.3 | H4: -1 | I4: 0.1 | J4: J/m2 | K4: 0.2 | P4: 0.2 | R4: prof | S4: 0.006 | T4: m
A5: points_Gri | B5: 1 | C5: <questiontext format="html"> | E5: V4.Larg_Gri | F5: 70 | G5: 150 | H5: 1 | I5: 120 | J5: mm | K5: 80 | P5: 100 | S5: =SQRT(2*S2*S3/(PI()*S4))/1000000 -> 1.218788799 | T5: Mpa
A6: tolérance_Gri | B6: 0.05 | C6: =CONCATENATE(" <text><![CDATA[<p>", question_Gri, "</p>]]></text>") -> <text><![CDATA[<p> Une plaque est r&eacute;alis&eacute;e en verre ordinaire dont les propri&eacute;t&eacute;s sont les suivantes :<br />E = 75 GPa ; Rm = 52 MPa ; &gamma;<sub>S</sub> = 0,2 J/m2</p><p><p>Cette plaque est rectangulaire de dimension : <br />Hauteur = 200 mm; Largeur = 120 mm, Epaisseur = 9 mm;</p><p><p>Elle contient, &agrave; sa surface, une fissure grossi&egrave;re de caracteristique : <br/> profondeur = 43 microns; rayon de courbure en t&ecirc;te de fissure = 1 nm</p><p><p>a. Dans ces conditions de chargement de la plaque entaill&eacute;e calculer la contrainte maximale tol&eacute;rable selon le crit&egrave;re &eacute;nerg&eacute;tique de Griffith : {2:NUMERICAL:=1.05E+01:5.27E-01}MPa <br />b. Quelle est la concentration de contrainte induite par l'entaille ? {2:NUMERICAL:=4.15E+02:2.07E+01} [SD]<br />c. Quelle est la contrainte tol&eacute;rable selon le crit&egrave;re m&eacute;canique de Griffith ? {3:NUMERICAL:=1.81E+01:9.04E-01} MPa<br />d. Sous quelle force verticale aura lieu la rupture ? {4:NUMERICAL:=4.48E+02:2.24E+01} kN.</p>]]></text> | E6: V5.Epais_Gri | F6: 5 | G6: 25 | H6: 0 | I6: 9 | J6: mm | K6: 17 | P6: 11
A7: penalité_Gri | B7: 0.1 | C7: </questiontext> | E7: V6.Profond_Gri | F7: 10 | G7: 60 | H7: 0 | I7: 43 | J7: µm | K7: 38 | P7: 3000 | R7: RACINE(2*mod*Energie_surf/(PI()*prof))
A8: feedback_Gri | B8: _ | C8: =CONCATENATE(" <defaultgrade>",points_Gri,"</defaultgrade><generalfeedback><text>",feedback_Gri,"</text></generalfeedback><penalty>",penalty_Gri,"</penalty><hidden>0</hidden>)") -> <defaultgrade>1</defaultgrade><generalfeedback><text>_</text></generalfeedback><penalty>0.1</penalty><hidden>0</hidden>) | E8: V7.rho_Gri | F8: 1 | G8: 5 | H8: 0 | I8: 1 | J8: nm | K8: 2 | P8: 4
A9: Cellule vides_Gri | B9: =COUNTBLANK(B1:B8) -> 0 | C9: =CONCATENATE(" <idnumber>",idnumber_Gri,"</idnumber><tags><tag><text>",Tag_Gri,"</text></tag></tags>") -> <idnumber>210710-212021.20</idnumber><tags><tag><text>Griffith_Gri</text></tag></tags> | I9: 0 | M9: =SQRT(2*mod*Energie_surf/(PI()*prof)) -> 
A10: question format HTML_Gri | B10: =CONCATENATE(" ",B19,B20,B21,B22,B23,B24,B25,B26,B27,B28,B29) -> Une plaque est r&eacute;alis&eacute;e en verre ordinaire dont les propri&eacute;t&eacute;s sont les suivantes :<br />E = 75 GPa ; Rm = 52 MPa ; &gamma;<sub>S</sub> = 0,2 J/m2</p><p><p>Cette plaque est rectangulaire de dimension : <br />Hauteur = 200 mm; Largeur = 120 mm, Epaisseur = 9 mm;</p><p><p>Elle contient, &agrave; sa surface, une fissure grossi&egrave;re de caracteristique : <br/> profondeur = 43 microns; rayon de courbure en t&ecirc;te de fissure = 1 nm</p><p><p>a. Dans ces conditions de chargement de la plaque entaill&eacute;e calculer la contrainte maximale tol&eacute;rable selon le crit&egrave;re &eacute;nerg&eacute;tique de Griffith : {2:NUMERICAL:=1.05E+01:5.27E-01}MPa <br />b. Quelle est la concentration de contrainte induite par l'entaille ? {2:NUMERICAL:=4.15E+02:2.07E+01} [SD]<br />c. Quelle est la contrainte tol&eacute;rable selon le crit&egrave;re m&eacute;canique de Griffith ? {3:NUMERICAL:=1.81E+01:9.04E-01} MPa<br />d. Sous quelle force verticale aura lieu la rupture ? {4:NUMERICAL:=4.48E+02:2.24E+01} kN. | C10: </question> | F10: Cible_Gri | G10: Toler_Gri | H10: PointsQuestion_Gri | P10: 40.7
A11: Repere Var Rep | B11: _Gri | E11: R1.SigEner_Gri | F11: =ROUND(SQRT((2*V1.E_Gri*1000000000*V3.Gamma_Gri)/(PI()*V6.Profond_Gri*0.000001)),-2)/1000000 -> 10.5375 | G11: =tolerance_Gri*ValMini_Gri -> 0.526875 | H11: 2 | I11: =CONCATENATE("{",PointsQuestion_Gri,":NUMERICAL:=",TEXT(Cible_Gri,"0.00E+00"),":",TEXT(ABS(Tolere_Gri),"0.00E+00"),"}") -> {2:NUMERICAL:=1.05E+01:5.27E-01} | P11: 70.71067812
A12: HTML File | B12: =CONCATENATE(categorie_Gri,"_HTML.txt") -> Griffith_HTML.txt | E12: R2.KT_Gri | F12: =2*SQRT(V6.Profond_Gri*0.000001/(V7.rho_Gri*0.000000001)) -> 414.7288271 | G12: =tolerance_Gri*ValMini_Gri -> 20.73644135 | H12: 2 | I12: =CONCATENATE("{",PointsQuestion_Gri,":NUMERICAL:=",TEXT(Cible_Gri,"0.00E+00"),":",TEXT(ABS(Tolere_Gri),"0.00E+00"),"}") -> {2:NUMERICAL:=4.15E+02:2.07E+01} | P12: 91.92388155
A13: Valide ? | B13: =ISNUMBER(F15) -> TRUE | E13: R3.SigMec_Gri | F13: =(1000*V1.E_Gri/10)/(F12) -> 18.08410583 | G13: =tolerance_Gri*ValMini_Gri -> 0.9042052916 | H13: 3 | I13: =CONCATENATE("{",PointsQuestion_Gri,":NUMERICAL:=",TEXT(Cible_Gri,"0.00E+00"),":",TEXT(ABS(Tolere_Gri),"0.00E+00"),"}") -> {3:NUMERICAL:=1.81E+01:9.04E-01} | P13: 101.1162697
A14: https://html-online.com/editor/ | E14: R4.Force_Gri | F14: =MAX(F13,F12)*V4.Larg_Gri*V5.Epais_Gri/1000 -> 447.9071332 | G14: =tolerance_Gri*ValMini_Gri -> 22.39535666 | H14: 4 | I14: =CONCATENATE("{",PointsQuestion_Gri,":NUMERICAL:=",TEXT(Cible_Gri,"0.00E+00"),":",TEXT(ABS(Tolere_Gri),"0.00E+00"),"}") -> {4:NUMERICAL:=4.48E+02:2.24E+01}
C15: 9 | F15: =SUM(F11:H14) -> 946.8204444
A16: Var : | B16: # | C16: 7
A17: Res : | B17: $ | C17: 4
B19: =CONCATENATE("Une plaque est r&eacute;alis&eacute;e en verre ordinaire dont les propri&eacute;t&eacute;s sont les suivantes :<br />E = ",V1.E_Gri," GPa ; Rm = ",V2.Rm_Gri," MPa ; &gamma;<sub>S</sub> = 0,2 J/m2</p><p><p>Cette") -> Une plaque est r&eacute;alis&eacute;e en verre ordinaire dont les propri&eacute;t&eacute;s sont les suivantes :<br />E = 75 GPa ; Rm = 52 MPa ; &gamma;<sub>S</sub> = 0,2 J/m2</p><p><p>Cette | K19: =CONCATENATE("Une plaque est réalisée en verre ordinaire dont les propriétés sont les suivantes : \\E = ",V1.E_Gri," GPa ; Rm = ",V2.Rm_Gri," MPa ; $\gamma_s $= 0,2 J/m2 \\ Cette plaque est rectangulaire de dimension :\\Hauteur = 10cm;") -> Une plaque est réalisée en verre ordinaire dont les propriétés sont les suivantes : \\E = 75 GPa ; Rm = 52 MPa ; $\gamma_s $= 0,2 J/m2 \\ Cette plaque est rectangulaire de dimension :\\Hauteur = 10cm;
B20: =CONCATENATE(" plaque est rectangulaire de dimension : <br />Hauteur = 200 mm; Largeur = ",V4.Larg_Gri," mm, Epaisseur = ",V5.Epais_Gri," mm;</p><p><p>Elle contient, &agrave; sa surface, une fissure grossi&egrave;re de caracteristique : <br") -> plaque est rectangulaire de dimension : <br />Hauteur = 200 mm; Largeur = 120 mm, Epaisseur = 9 mm;</p><p><p>Elle contient, &agrave; sa surface, une fissure grossi&egrave;re de caracteristique : <br | C20: Une plaque est réalisée en verre ordinaire dont les propriétés sont les suivantes : | K20: =CONCATENATE("Largeur = ",V4.Larg_Gri," mm, Epaisseur = ",V5.Epais_Gri," mm; \\ Elle contient, à sa surface, une fissure grossière de caracteristique :\\profondeur = ",V6.Profond_Gri," µm; rayon de courbure en tête de fissure = ",V7.rho_Gri," nm\\a. Dans ces conditions") -> Largeur = 120 mm, Epaisseur = 9 mm; \\ Elle contient, à sa surface, une fissure grossière de caracteristique :\\profondeur = 43 µm; rayon de courbure en tête de fissure = 1 nm\\a. Dans ces conditions
B21: =CONCATENATE("/> profondeur = ",V6.Profond_Gri," microns; rayon de courbure en t&ecirc;te de fissure = ",V7.rho_Gri," nm</p><p><p>a. Dans ces conditions de chargement de la plaque entaill&eacute;e calculer la contrainte maximale tol&eacute;rable selon") -> /> profondeur = 43 microns; rayon de courbure en t&ecirc;te de fissure = 1 nm</p><p><p>a. Dans ces conditions de chargement de la plaque entaill&eacute;e calculer la contrainte maximale tol&eacute;rable selon | C21: E = #1# GPa ; Rm = #2# MPa ; gammas = 0,2 J/m2 | K21: =CONCATENATE("de chargement de la plaque entaillée calculer la contrainte maximale tolérable selon le critère énergétique de Griffith : \formsol{$\sigma _{nom} \ge \sqrt {\frac{{2E\gamma _s }}{{\pi a}}}$}\minisol{",ROUND(F11,0),"} MPa \\b. Quelle est la concentration de contrainte induite") -> de chargement de la plaque entaillée calculer la contrainte maximale tolérable selon le critère énergétique de Griffith : \formsol{$\sigma _{nom} \ge \sqrt {\frac{{2E\gamma _s }}{{\pi a}}}$}\minisol{11} MPa \\b. Quelle est la concentration de contrainte induite
B22: =CONCATENATE(" le crit&egrave;re &eacute;nerg&eacute;tique de Griffith : ",R1.SigEner_Gri,"MPa <br />b. Quelle est la concentration de contrainte induite par l'entaille ? ",R2.KT_Gri," [SD]<br />c. Quelle est la contrainte tol&eacute;rable selon") -> le crit&egrave;re &eacute;nerg&eacute;tique de Griffith : {2:NUMERICAL:=1.05E+01:5.27E-01}MPa <br />b. Quelle est la concentration de contrainte induite par l'entaille ? {2:NUMERICAL:=4.15E+02:2.07E+01} [SD]<br />c. Quelle est la contrainte tol&eacute;rable selon | K22: =CONCATENATE("par l'entaille ? \formsol{$K_t=2\sqrt{\frac{a}{\rho}}$}\minisol{",ROUND(F12,0),"} [SD]\\c. Quelle est la contrainte tolérable selon le critère mécanique de Griffith ? \formsol{$\sigma_{loc} = Rm => \sigma_{mac} = RmTH / Kt $}\minisol{",ROUND(F13,0),"} MPa\\d. Sous quelle force verticale aura lieu la rupture") -> par l'entaille ? \formsol{$K_t=2\sqrt{\frac{a}{\rho}}$}\minisol{415} [SD]\\c. Quelle est la contrainte tolérable selon le critère mécanique de Griffith ? \formsol{$\sigma_{loc} = Rm => \sigma_{mac} = RmTH / Kt $}\minisol{18} MPa\\d. Sous quelle force verticale aura lieu la rupture
B23: =CONCATENATE(" le crit&egrave;re m&eacute;canique de Griffith ? ",R3.SigMec_Gri," MPa<br />d. Sous quelle force verticale aura lieu la rupture ? ",R4.SigTot_Gri," kN.") -> le crit&egrave;re m&eacute;canique de Griffith ? {3:NUMERICAL:=1.81E+01:9.04E-01} MPa<br />d. Sous quelle force verticale aura lieu la rupture ? {4:NUMERICAL:=4.48E+02:2.24E+01} kN. | C23: Cette plaque est rectangulaire de dimension : | K23: =CONCATENATE("? \formsol{$F = \sigma \times S_0$}\minisol{",ROUND(F14,0),"} kN.") -> ? \formsol{$F = \sigma \times S_0$}\minisol{448} kN.
C24: Hauteur = #3# mm; Largeur = #4# mm, Epaisseur = #5# mm;
B25: =CONCATENATE("") -> 
B26: =CONCATENATE("") ->  | C26: Elle contient, à sa surface, une fissure grossière de caracteristique :
B27: =CONCATENATE("") ->  | C27: profondeur = #6# mm; rayon de courbure en tête de fissure = #7# nm
B28: =CONCATENATE("") -> 
B29: =CONCATENATE("") ->  | C29: a. Dans ces conditions de chargement de la plaque entaillée calculer la contrainte maximale tolérable selon le critère énergétique de Griffith : \formsol{$$}\minisol{} MPa
C30: b. Quelle est la concentration de contrainte induite par l'entaille ? \formsol{$$}\minisol{} [SD]
C31: c. Quelle est la contrainte tolérable selon le critère mécanique de Griffith ? \formsol{$$}\minisol{} MPa
C32: d. Sous quelle force verticale aura lieu la rupture ? \formsol{$$}\minisol{} kN.

Sheet WeiPara
A1: catégorie_Wei | B1: WeiPara | C1: =CONCATENATE(" <!-- question XLQ ", titre_Wei, "-->") -> <!-- question XLQ WeiPara_Wei--> | F1: Valeur Mini_Wei | G1: Valeur Maxi_Wei | H1: Sig. Digit_Wei | I1: Val Choix_Wei | O1: rigoureux contrainte | P1: ln(-ln(1-p))
B2: WeiPara_Wei | C2: =CONCATENATE(" <question type=",CHAR(34),"category",CHAR(34),"><category><text>", categorie_Wei,"</text></category></question>)") -> <question type="category"><category><text>WeiPara</text></category></question>) | E2: V1._Wei | F2: =Contr_Rig*(1-Randm_Wei*RAND()) -> 5.259444359 | G2: =Contr_Rig*(1+Randm_Wei*RAND()/100) -> 5.294493053 | H2: -2 | I2: =ROUND(EXP(RANDBETWEEN(ValMini_Wei*10^-SigDig_Wei, ValMaxi_Wei*10^-SigDig_Wei)/10^-SigDig_Wei),0) -> 196 | K2: log Sig | L2: MPa | N2: 1 | O2: =(Proba_Wei-Ordonnee)/Module -> 5.294151087 | P2: =LN(-LN(1-N2/10)) -> -2.250367327 | S2: pente | T2: ordo
A3: Tag_Wei | B3: WeiPara_Wei | C3: <question type="cloze"> | E3: V2._Wei | F3: 5.307921493 | G3: 5.370405558 | H3: -2 | I3: 213 | K3: log Sig | L3: MPa | N3: 2 | O3: =(Proba_Wei-Ordonnee)/Module -> 5.369951828 | P3: -1.499939987 | S3: =LINEST(P2:P10,O2:O10,1,1) -> 9.9 | T3: -54.66246309 | CA3: <p>On r&eacute;alise des exp&eacute;riences traction sur un mat&eacute;riau fragile. On obtient un ensemble de contraintes &agrave; rupture suivant : "";V9._Wei;"", "";V7._Wei;"", "";V5._Wei;"", "";V3._Wei;"", "";V4._Wei;"", "";V6._Wei;"", "";V2._Wei;"", "";V8._Wei;"", "";V1._Wei;"" MPa. En deduire les param&egrave;tres de Weibull associ&eacute;s :</p><p><p>&nbsp;</p><p><p>Le module m="";Module;""</p><p><p>&nbsp;</p><p><p>&nbsp;</p><p><p>Le facteur d'&eacute;chelle Ko="";Facteur_Echelle;"" MPa</p><p><p>&nbsp;</p><p>
A4: idnumber_Wei | B4: =TEXT(NOW(),"aammjj-hhmmss.00") -> 210710-212021.20 | C4: =CONCATENATE(" <name><text>", titre_Wei, "</text></name>") -> <name><text>WeiPara_Wei</text></name> | E4: V3._Wei | F4: =Contr_Rig*(1-Randm_Wei*RAND()) -> 5.338983913 | G4: =Contr_Rig*(1+Randm_Wei*RAND()/100) -> 5.418436836 | H4: -2 | I4: =ROUND(EXP(RANDBETWEEN(ValMini_Wei*10^-SigDig_Wei, ValMaxi_Wei*10^-SigDig_Wei)/10^-SigDig_Wei),0) -> 217 | K4: log Sig | L4: MPa | N4: 3 | O4: =(Proba_Wei-Ordonnee)/Module -> 5.417326531 | P4: -1.030930433 | S4: 1.125018554e-14 | T4: 6.156950915e-14
A5: points_Wei | B5: 1 | C5: <questiontext format="html"> | E5: V4._Wei | F5: 5.374966632 | G5: 5.454156695 | H5: -2 | I5: 217 | K5: log Sig | L5: MPa | N5: 4 | O5: 5.453609707 | P5: -0.6717269921 | S5: 1 | T5: 3.166469462e-15
A6: tolérance_Wei | B6: 0.25 | C6: =CONCATENATE(" <text><![CDATA[<p>", question_Wei, "</p>]]></text>") -> <text><![CDATA[<p> On r&eacute;alise des exp&eacute;riences traction sur un mat&eacute;riau fragile. On obtient un ensemble de contraintes &agrave; rupture suivantes : 268, 242, 240, 217, 217, 245, 213, 250, 196 MPa. En deduire les param&egrave;tres de Weibull associ&eacute;s :</p><p><p>&nbsp;</p><p><p>Le module m={1:NUMERICAL:=9.90E+00:2.48E+00}</p><p><p>&nbsp;</p><p><p>&nbsp;</p><p><p>Lefacteur d'&eacute;chelle Ko={1:NUMERICAL:=2.43E+02:6.07E+01} MPa</p><p><p>&nbsp;</p><p></p>]]></text> | E6: V5._Wei | F6: 5.410276634 | G6: 5.48546341 | H6: -2 | I6: 240 | K6: log Sig | L6: MPa | N6: 5 | O6: 5.484439411 | P6: -0.3665129206 | S6: 7.743744571e+29 | T6: 7
A7: penalité_Wei | B7: 0.1 | C7: </questiontext> | E7: V6._Wei | F7: 5.425572183 | G7: 5.512885667 | H7: -2 | I7: 245 | K7: log Sig | L7: MPa | N7: 6 | O7: 5.512630456 | P7: -0.08742157179 | S7: 7.76428784 | T7: 7.0185702e-29
A8: feedback_Wei | B8: _ | C8: =CONCATENATE(" <defaultgrade>",points_Wei,"</defaultgrade><generalfeedback><text>",feedback_Wei,"</text></generalfeedback><penalty>",penalty_Wei,"</penalty><hidden>0</hidden>)") -> <defaultgrade>1</defaultgrade><generalfeedback><text>_</text></generalfeedback><penalty>0.1</penalty><hidden>0</hidden>) | E8: V7._Wei | F8: 5.470558205 | G8: 5.540924 | H8: -2 | I8: 242 | K8: log Sig | L8: MPa | N8: 7 | O8: 5.540211096 | P8: 0.1856267589
A9: Cellule vides_Wei | B9: =COUNTBLANK(B1:B8) -> 0 | C9: =CONCATENATE(" <idnumber>",idnumber_Wei,"</idnumber><tags><tag><text>",Tag_Wei,"</text></tag></tags>") -> <idnumber>210710-212021.20</idnumber><tags><tag><text>WeiPara_Wei</text></tag></tags> | E9: V8._Wei | F9: 5.512182657 | G9: 5.569956063 | H9: -2 | I9: 250 | K9: log Sig | L9: MPa | N9: 8 | O9: 5.569530109 | P9: 0.4758849953 | T9: =EXP(-T3/S3) -> 250
A10: question format HTML_Wei | B10: =CONCATENATE(" ",B19,B20,B21,B22,B23,B24) -> On r&eacute;alise des exp&eacute;riences traction sur un mat&eacute;riau fragile. On obtient un ensemble de contraintes &agrave; rupture suivantes : 268, 242, 240, 217, 217, 245, 213, 250, 196 MPa. En deduire les param&egrave;tres de Weibull associ&eacute;s :</p><p><p>&nbsp;</p><p><p>Le module m={1:NUMERICAL:=9.90E+00:2.48E+00}</p><p><p>&nbsp;</p><p><p>&nbsp;</p><p><p>Lefacteur d'&eacute;chelle Ko={1:NUMERICAL:=2.43E+02:6.07E+01} MPa</p><p><p>&nbsp;</p><p> | C10: </question> | E10: V9._Wei | F10: 5.550598803 | G10: 5.606596082 | H10: -2 | I10: 268 | K10: log Sig | L10: MPa | N10: 9 | O10: 5.605706619 | P10: 0.8340324452
A11: Repere Var Rep | B11: _Wei | E11: 1-- V10._Wei | F11: 250 | G11: 350 | H11: 0 | I11: =RANDBETWEEN(ValMini_Wei*10^-SigDig_Wei, ValMaxi_Wei*10^-SigDig_Wei)/10^-SigDig_Wei -> 250 | J11: moyenne | K11: log Sig | L11: MPa
A12: HTML File | B12: =CONCATENATE(categorie_Wei,"_HTML.txt") -> WeiPara_HTML.txt
A13: Valide ? | B13: =ISNUMBER(V10._Wei) -> TRUE | E13: alea | F13: 1.8 | G13: 2.5 | H13: -1 | I13: =RANDBETWEEN(ValMini_Wei*10^-SigDig_Wei, ValMaxi_Wei*10^-SigDig_Wei)/10^-SigDig_Wei/100 -> 0.023
A14: https://html-online.com/editor/ | E14: 2-- Ordo | I14: =-Module*LN(V10._Wei) -> -54.66246309 | J14: ordonnée | L14: verif s | M14: =EXP(-I14/I15) -> 250 | R14: =100*ABS(R17/R16)+ABS(S17/S16) -> 9.524543408
C15: 9 | E15: 1 --m | F15: 1 | G15: 10 | H15: -1 | I15: =RANDBETWEEN(ValMini_Wei*10^-SigDig_Wei, ValMaxi_Wei*10^-SigDig_Wei)/10^-SigDig_Wei -> 9.9 | J15: pente | L15: Extracted s | M15: =EXP(-Ordonnee/Module) -> 250 | O15: sig exp | P15: ln exp | R15: pente | S15: ordo
A16: Var : | B16: # | C16: 7 | F16: Cible_Wei | G16: Toler_Wei | H16: PointsQuestion_Wei | O16: =LN(I2) -> 5.278114659 | P16: =P2 -> -2.250367327 | R16: =LINEST(P16:P24,O16:O24,1,1) -> 9.755469694 | S16: -53.58427734
A17: Res : | B17: $ | C17: 2 | E17: R1.Module_Wei | F17: =I15 -> 9.9 | G17: =tolerance_Wei*ValMini_Wei -> 2.475 | H17: 1 | I17: =CONCATENATE("{",PointsQuestion_Wei,":NUMERICAL:=",TEXT(Cible_Wei,"0.00E+00"),":",TEXT(ABS(Tolere_Wei),"0.00E+00"),"}") -> {1:NUMERICAL:=9.90E+00:2.48E+00} | O17: 5.361292166 | P17: -1.499939987 | R17: 0.9200463285 | S17: 5.008071779
E18: R2.Exp_Wei | F18: =Facteur_Echelle -> 242.9223683 | G18: =tolerance_Wei*ValMini_Wei -> 60.73059208 | H18: 1 | I18: =CONCATENATE("{",PointsQuestion_Wei,":NUMERICAL:=",TEXT(Cible_Wei,"0.00E+00"),":",TEXT(ABS(Tolere_Wei),"0.00E+00"),"}") -> {1:NUMERICAL:=2.43E+02:6.07E+01} | O18: 5.379897354 | P18: -1.030930433 | R18: 0.9413875957 | S18: 0.2549743903
B19: =CONCATENATE("On r&eacute;alise des exp&eacute;riences traction sur un mat&eacute;riau fragile. On obtient un ensemble de contraintes &agrave; rupture suivantes : ",V9._Wei,", ",V7._Wei,", ",V5._Wei,", ",V3._Wei,",") -> On r&eacute;alise des exp&eacute;riences traction sur un mat&eacute;riau fragile. On obtient un ensemble de contraintes &agrave; rupture suivantes : 268, 242, 240, 217, | C19: <p>On r&eacute;alise des exp&eacute;riences traction sur un mat&eacute;riau fragile. On obtient un ensemble de contraintes &agrave; rupture suivant : ";V9._Wei;", ";V7._Wei;", ";V5._Wei;", ";V3._Wei;", ";V4._Wei;", ";V6._Wei;", ";V2._Wei;", ";V8._Wei;", ";V1._Wei;" MPa. En deduire les param&egrave;tres de Weibull associ&eacute;s :</p> | O19: 5.379897354 | P19: -0.6717269921 | R19: 112.4286446 | S19: 7
B20: =CONCATENATE(" ",V4._Wei,", ",V6._Wei,", ",V2._Wei,", ",V8._Wei,", ",V1._Wei," MPa. En deduire les param&egrave;tres de Weibull associ&eacute;s :</p><p><p>&nbsp;</p><p><p>Le module m=",R1.Module_Wei,"</p><p><p>&nbsp;</p><p><p>&nbsp;</p><p><p>Le") -> 217, 245, 213, 250, 196 MPa. En deduire les param&egrave;tres de Weibull associ&eacute;s :</p><p><p>&nbsp;</p><p><p>Le module m={1:NUMERICAL:=9.90E+00:2.48E+00}</p><p><p>&nbsp;</p><p><p>&nbsp;</p><p><p>Le | C20: <p>&nbsp;</p> | O20: 5.480638923 | P20: -0.3665129206 | R20: 7.309204262 | S20: 0.4550835779
B21: =CONCATENATE("facteur d'&eacute;chelle Ko=",R2.Exp_Wei," MPa</p><p><p>&nbsp;</p><p>") -> facteur d'&eacute;chelle Ko={1:NUMERICAL:=2.43E+02:6.07E+01} MPa</p><p><p>&nbsp;</p><p> | C21: <p>Le module m=";Module;"</p> | O21: 5.501258211 | P21: -0.08742157179
B22: =CONCATENATE("") ->  | C22: <p>&nbsp;</p> | O22: 5.488937726 | P22: 0.1856267589
B23: =CONCATENATE("") ->  | C23: <p>&nbsp;</p> | O23: 5.521460918 | P23: 0.4758849953 | R23: Facteur Echelle | S23: =EXP(-S16/R16) -> 242.9223683
B24: =CONCATENATE("") ->  | C24: <p>Le facteur d'&eacute;chelle Ko=";Facteur_Echelle;" MPa</p> | O24: 5.590986981 | P24: 0.8340324452
C25: <p>&nbsp;</p>
O27: =CONCATENATE("On réalise des expériences traction sur un matériau fragile. On obtient un ensemble de contraintes à rupture suivant : ",V9._Wei,", ",V7._Wei,", ",V5._Wei,", ",V3._Wei,", ",V4._Wei,", ",V6._Wei,", ",V2._Wei,", ",V8._Wei,", ",V1._Wei," MPa. En deduire les paramètres de Weibull associés :\\") -> On réalise des expériences traction sur un matériau fragile. On obtient un ensemble de contraintes à rupture suivant : 268, 242, 240, 217, 217, 245, 213, 250, 196 MPa. En deduire les paramètres de Weibull associés :\\
O28: =CONCATENATE("Le module \minisol{m=",Module,"}\\") -> Le module \minisol{m=9.9}\\
O29: =CONCATENATE("Le facteur d'échelle Ko=\minisol{",ROUND(Facteur_Echelle,0),"} MPa") -> Le facteur d'échelle Ko=\minisol{243} MPa

Sheet Stat
A1: catégorie_Stat | B1: Incert_Stat | C1: =CONCATENATE(" <!-- question XLQ ", titre_Stat, "-->") -> <!-- question XLQ Moy_et_Ecart--> | F1: Valeur Mini_Stat | G1: Valeur Maxi_Stat | H1: Sig. Digit_Stat | I1: Val Choix_Stat | M1: 1 | N1: =CONCATENATE("#",M1," ; ") -> #1 ;
A2: titre_Stat | B2: Moy_et_Ecart | C2: =CONCATENATE(" <question type=",CHAR(34),"category",CHAR(34),"><category><text>", categorie_Stat,"</text></category></question>)") -> <question type="category"><category><text>Incert_Stat</text></category></question>) | E2: V1._Stat | F2: 1 | G2: 10 | H2: -1 | I2: =RANDBETWEEN(ValMini_Stat*10^-SigDig_Stat, ValMaxi_Stat*10^-SigDig_Stat)/10^-SigDig_Stat -> 1.3 | M2: 2 | N2: #2 ;
A3: Tag_Stat | B3: M-STDV | C3: <question type="cloze"> | E3: V2._Stat | F3: 1 | G3: 20 | H3: -1 | I3: 12.8 | M3: 3 | N3: #3 ;
A4: idnumber_Stat | B4: =TEXT(NOW(),"aammjj-hhmmss.00") -> 210710-212021.19 | C4: =CONCATENATE(" <name><text>", titre_Stat, "</text></name>") -> <name><text>Moy_et_Ecart</text></name> | E4: V3._Stat | F4: 1 | G4: 30 | H4: -1 | I4: 19.7 | M4: 4 | N4: #4 ;
A5: points_Stat | B5: 1 | C5: <questiontext format="html"> | E5: V4._Stat | F5: 1 | G5: 100 | H5: 0 | I5: 42 | M5: 5 | N5: #5 ;
A6: tolérance_Stat | B6: 0.05 | C6: =CONCATENATE(" <text><![CDATA[<p>", question_Stat, "</p>]]></text>") -> <text><![CDATA[<p>Pour cet ensemble de valeurs : 1.3 ; 12.8 ; 19.7 ; 42 ; 9 ; 24.2 ; 17.5 ; 12 ; 20 ; 14.5 ; 3.8 ; 6 , calculez la moyenne : {1:NUMERICAL:=1.52E+01:7.62E-01} et l'ecart type : {1:NUMERICAL:=1.09E+01:5.46E-01}<p></p>]]></text> | E6: V5._Stat | F6: 6 | G6: 16 | H6: -1 | I6: 9 | M6: 6 | N6: #6 ;
A7: penalité_Stat | B7: 0.1 | C7: </questiontext> | E7: V6._Stat | F7: 1 | G7: 99 | H7: -1 | I7: 24.2 | M7: 7 | N7: #7 ;
A8: feedback_Stat | B8: Statistiques | C8: =CONCATENATE(" <defaultgrade>",points_Stat,"</defaultgrade><generalfeedback><text>",feedback_Stat,"</text></generalfeedback><penalty>",penalty_Stat,"</penalty><hidden>0</hidden>)") -> <defaultgrade>1</defaultgrade><generalfeedback><text>Statistiques</text></generalfeedback><penalty>0.1</penalty><hidden>0</hidden>) | E8: V7._Stat | F8: 1 | G8: 22 | H8: -1 | I8: 17.5 | M8: 8 | N8: #8 ;
A9: Cellule vides_Stat | B9: =COUNTBLANK(B1:B8) -> 0 | C9: =CONCATENATE(" <idnumber>",idnumber_Stat,"</idnumber><tags><tag><text>",Tag_Stat,"</text></tag></tags>") -> <idnumber>210710-212021.19</idnumber><tags><tag><text>M-STDV</text></tag></tags> | E9: V8._Stat | F9: 1 | G9: 74 | H9: 0 | I9: 12 | M9: 9 | N9: #9 ;
A10: question format HTML_Stat | B10: =CONCATENATE(C19, C20, C21, C22) -> Pour cet ensemble de valeurs : 1.3 ; 12.8 ; 19.7 ; 42 ; 9 ; 24.2 ; 17.5 ; 12 ; 20 ; 14.5 ; 3.8 ; 6 , calculez la moyenne : {1:NUMERICAL:=1.52E+01:7.62E-01} et l'ecart type : {1:NUMERICAL:=1.09E+01:5.46E-01}<p> | C10: </question> | E10: V9._Stat | F10: 5 | G10: 35 | H10: 1 | I10: 20 | M10: 10 | N10: #10 ;
A11: Repere Var Rep | B11: _Stat | E11: V10._Stat | F11: 9 | G11: 26 | H11: -1 | I11: 14.5 | M11: 11 | N11: #11 ;
A12: HTML File | B12: Stats.txt | E12: V11._Stat | F12: 3 | G12: 12 | H12: -1 | I12: 3.8 | M12: 12 | N12: #12 ;
A13: Valide ? | B13: =ISNUMBER(H18) -> TRUE | E13: V12._Stat | F13: 4 | G13: 12 | H13: 0 | I13: 6
A14: https://html-online.com/editor/ | M14: =CONCATENATE("Pour cet ensemble de valeurs : ",N1,N2,N3,N4,N5,N6,N7,N8,N9,N10,N11,N12,", calculez la moyenne : $1 et l'ecart type : $2.") -> Pour cet ensemble de valeurs : #1 ; #2 ; #3 ; #4 ; #5 ; #6 ; #7 ; #8 ; #9 ; #10 ; #11 ; #12 ; , calculez la moyenne : $1 et l'ecart type : $2.
A15: https://html5-editor.net/ | C15: 14 | F15: Cible_Stat | G15: Tolér_Stat | H15: Sig. Digit_Stat | M15: Pour cet ensemble de valeurs : #1 ; #2 ; #3 ; #4 ; #5 ; #6 ; #7 ; #8 ; #9 ; #10 ; #11 ; #12 , calculez la moyenne : $1 et l'ecart type : $2
A16: Var : | B16: # | C16: 12 | E16: R1.Moy_Stat | F16: =AVERAGE(I2:I13) -> 15.23333333 | G16: =tolerance_Stat*ValMini_Stat -> 0.7616666667 | H16: 1 | I16: =CONCATENATE("{1:NUMERICAL:=",TEXT(Cible_Stat,"0.00E+00"),":",TEXT(Tolere_Stat,"0.00E+00"),"}") -> {1:NUMERICAL:=1.52E+01:7.62E-01}
A17: Res : | B17: $ | C17: 2 | E17: R2.Ecart_Stat | F17: =STDEV(I2:I13) -> 10.91515488 | G17: =tolerance_Stat*ValMini_Stat -> 0.545757744 | H17: 1 | I17: =CONCATENATE("{1:NUMERICAL:=",TEXT(Cible_Stat,"0.00E+00"),":",TEXT(Tolere_Stat,"0.00E+00"),"}") -> {1:NUMERICAL:=1.09E+01:5.46E-01}
H18: =SUM(F16:H17) -> 29.45591262
C19: =CONCATENATE("Pour cet ensemble de valeurs : ",V1._Stat," ; ",V2._Stat," ; ",V3._Stat," ;") -> Pour cet ensemble de valeurs : 1.3 ; 12.8 ; 19.7 ;
C20: =CONCATENATE(" ",V4._Stat," ; ",V5._Stat," ; ",V6._Stat," ; ",V7._Stat," ; ",V8._Stat," ; ",V9._Stat," ; ",V10._Stat," ;") -> 42 ; 9 ; 24.2 ; 17.5 ; 12 ; 20 ; 14.5 ;
C21: =CONCATENATE(" ",V11._Stat," ; ",V12._Stat," , calculez la moyenne : ",R1.Moy_Stat," et l'ecar") -> 3.8 ; 6 , calculez la moyenne : {1:NUMERICAL:=1.52E+01:7.62E-01} et l'ecar
C22: =CONCATENATE("t type : ",R2.Ecart_Stat,"<p>") -> t type : {1:NUMERICAL:=1.09E+01:5.46E-01}<p>
E23: 7.8 | F23: 19.9 | G23: 19.3 | H23: 82 | I23: 14.2 | J23: 80.1 | K23: 10.4 | L23: 72 | M23: 10 | N23: 22.8 | O23: 8.4 | P23: 9
E24: =AVERAGE(E23:P23) -> 29.65833333
E25: =STDEV(E23:P23) -> 29.66349021

Sheet Expr
A1: catégorie_EPhy | B1: Expr_Phys | C1: =CONCATENATE(" <!-- question XLQ ", titre_EPhy, "-->") -> <!-- question XLQ Expr_Phys--> | F1: Valeur Mini | G1: Valeur Maxi | H1: Sig. Digit | I1: Val Choix | J1: ODG | P1: u
A2: titre_EPhy | B2: Expr_Phys | C2: =CONCATENATE(" <question type=",CHAR(34),"category",CHAR(34),"><category><text>", categorie_EPhy,"</text></category></question>)") -> <question type="category"><category><text>Expr_Phys</text></category></question>) | E2: VarA_EPhy | F2: =RAND()*10^(J2) -> 6.460618635e-07 | G2: =ROUND(F2,1-INT(LOG10(ABS(M2)))) -> 6.461e-07 | J2: -6 | L2: DeltA_EPhy | M2: =F2*10^(-3*(RAND()+0.1)) -> 2.09158829e-09 | N2: =ROUNDUP(M2,1-INT(LOG10(ABS(M2)))) -> 2.1e-09
A3: Tag_EPhy | B3: Ecriture_correcte | C3: <question type="cloze"> | E3: VarB_EPhy | F3: =RAND()*10^(J3) -> 0.000620387997 | G3: =ROUND(F3,1-INT(LOG10(ABS(M3)))) -> 0.00062 | J3: -3 | L3: DelB_EPhy | M3: =F3*10^(-3*(RAND()+0.1)) -> 0.0002054756461 | N3: =ROUNDUP(M3,1-INT(LOG10(ABS(M3)))) -> 0.00021
A4: idnumber_EPhy | B4: =TEXT(NOW(),"aammjj-hhmmss.00") -> 210710-212021.19 | C4: =CONCATENATE(" <name><text>", titre_EPhy, "</text></name>") -> <name><text>Expr_Phys</text></name> | E4: VarC_EPhy | F4: =RAND()*10^(J4) -> 942.5618972 | G4: =ROUND(F4,1-INT(LOG10(ABS(M4)))) -> 940 | J4: 3 | L4: DeltC_EPhy | M4: =F4*10^(-3*(RAND()+0.1)) -> 125.5303283 | N4: =ROUNDUP(M4,1-INT(LOG10(ABS(M4)))) -> 130
A5: points_EPhy | B5: 1 | C5: <questiontext format="html"> | E5: VarD_EPhy | F5: =RAND()*10^(J5) -> 207238.5196 | G5: =ROUND(F5,1-INT(LOG10(ABS(M5)))) -> 207240 | J5: 6 | L5: DeltD_EPhy | M5: =F5*10^(-3*(RAND()+0.1)) -> 721.2921652 | N5: =ROUNDUP(M5,1-INT(LOG10(ABS(M5)))) -> 730
A6: tolérance_EPhy | B6: 0.05 | C6: =CONCATENATE(" <text><![CDATA[<p>", question_EPhy, "</p>]]></text>") -> <text><![CDATA[<p><p>Exprimer correctement ces r&eacute;sultats num&eacute;riques (valeur, incertitude et pr&eacute;fixe : f,n,u,m,-,k,M,G,T) :</p><ul><li>203229312576.579+/-10551759595.7798={1:NUMERICAL:=203:20.3}+/-{1:NUMERICAL:=11:1.1}{1:SHORTANSWER:=G}<BR>207238.519587296+/-721.292165227514={1:NUMERICAL:=207240:20724}+/-{1:NUMERICAL:=730:73}{1:SHORTANSWER:=-}<BR>942.561897151825+/-125.530328289887={1:NUMERICAL:=940:94}+/-{1:NUMERICAL:=130:13}{1:SHORTANSWER:=-}<BR>0.00062038799704727+/-0.000205475646068861={1:NUMERICAL:=620:62}+/-{1:NUMERICAL:=210:21}{1:SHORTANSWER:=u}<BR>6.46061863519721E-07+/-2.09158828997261E-09={1:NUMERICAL:=646.1:64.61}+/-{1:NUMERICAL:=2.1:0.21}{1:SHORTANSWER:=n}<BR></li></ul></p>]]></text> | E6: VarE_EPhy | F6: =RAND()*10^(J6) -> 2.032293126e+11 | G6: =ROUND(F6,1-INT(LOG10(ABS(M6)))) -> 203000000000 | J6: 12 | L6: DeltE_EPhy | M6: =F6*10^(-3*(RAND()+0.1)) -> 1.05517596e+10 | N6: =ROUNDUP(M6,1-INT(LOG10(ABS(M6)))) -> 11000000000
A7: penalité_EPhy | B7: 0.1 | C7: </questiontext>
A8: feedback_EPhy | B8: revoir_le_cours | C8: =CONCATENATE(" <defaultgrade>",points_EPhy,"</defaultgrade><generalfeedback><text>",feedback_EPhy,"</text></generalfeedback><penalty>",penalty_EPhy,"</penalty><hidden>0</hidden>)") -> <defaultgrade>1</defaultgrade><generalfeedback><text>revoir_le_cours</text></generalfeedback><penalty>0.1</penalty><hidden>0</hidden>)
A9: Cellule vides_Ephys | B9: =COUNTBLANK(B1:B8) -> 0 | C9: =CONCATENATE(" <idnumber>",idnumber_EPhy,"</idnumber><tags><tag><text>",Tag_EPhy,"</text></tag></tags>") -> <idnumber>210710-212021.19</idnumber><tags><tag><text>Ecriture_correcte</text></tag></tags>
A10: question format HTML_EPhy | B10: =CONCATENATE("<p>Exprimer correctement ces r&eacute;sultats num&eacute;riques (valeur, incertitude et pr&eacute;fixe : f,n,u,m,-,k,M,G,T) :</p><ul><li>",TRIM(I20),"</li></ul>") -> <p>Exprimer correctement ces r&eacute;sultats num&eacute;riques (valeur, incertitude et pr&eacute;fixe : f,n,u,m,-,k,M,G,T) :</p><ul><li>203229312576.579+/-10551759595.7798={1:NUMERICAL:=203:20.3}+/-{1:NUMERICAL:=11:1.1}{1:SHORTANSWER:=G}<BR>207238.519587296+/-721.292165227514={1:NUMERICAL:=207240:20724}+/-{1:NUMERICAL:=730:73}{1:SHORTANSWER:=-}<BR>942.561897151825+/-125.530328289887={1:NUMERICAL:=940:94}+/-{1:NUMERICAL:=130:13}{1:SHORTANSWER:=-}<BR>0.00062038799704727+/-0.000205475646068861={1:NUMERICAL:=620:62}+/-{1:NUMERICAL:=210:21}{1:SHORTANSWER:=u}<BR>6.46061863519721E-07+/-2.09158828997261E-09={1:NUMERICAL:=646.1:64.61}+/-{1:NUMERICAL:=2.1:0.21}{1:SHORTANSWER:=n}<BR></li></ul> | C10: </question>
A11: Repere Var Rep | B11: _Ephys
A12: HTML File | B12: Expression.HTML.txt
A13: Valide ? | B13: =ISNUMBER(G19) -> TRUE | F13: Resltat X | G13: Delta X
A14: https://html-online.com/editor/ | E14: ResA_EPhy | F14: =CONCATENATE( IF(N2<1000000000000000,IF(N2>=1000000000000,CONCATENATE(ABS(G2)/1000000000000,""),""),""), IF(N2<1000000000000,IF(N2>=1000000000,CONCATENATE(ABS(G2)/1000000000,""),""),""), IF(N2<1000000000,IF(N2>=1000000,CONCATENATE(ABS(G2)/1000000,""),""),""), IF(N2<1000000,IF(N2>=1000,CONCATENATE(ABS(G2)/1000,""),""),""), IF(N2<1000,IF(N2>=1,CONCATENATE(ABS(G2)/1,""),""),""), IF(N2<1,IF(N2>=0.001,CONCATENATE(ABS(G2)/0.001,""),""),""), IF(N2<0.001,IF(N2>=0.000001,CONCATENATE(ABS(G2)/0.000001,""),""),""), IF(N2<0.000001,IF(N2>=0.000000001,CONCATENATE(ABS(G2)/0.000000001,""),""),""), IF(N2<0.000000001,IF(N2>=0.000000000001,CONCATENATE(ABS(G2)/0.000000000001,""),""),"")) -> 646.1 | G14: =CONCATENATE( IF(N2<1000000000000000,IF(N2>=1000000000000,CONCATENATE(ABS(N2)/1000000000000,""),""),""), IF(N2<1000000000000,IF(N2>=1000000000,CONCATENATE(ABS(N2)/1000000000,""),""),""), IF(N2<1000000000,IF(N2>=1000000,CONCATENATE(ABS(N2)/1000000,""),""),""), IF(N2<1000000,IF(N2>=1000,CONCATENATE(ABS(N2)/1000,""),""),""), IF(N2<1000,IF(N2>=1,CONCATENATE(ABS(N2)/1,""),""),""), IF(N2<1,IF(N2>=0.001,CONCATENATE(ABS(N2)/0.001,""),""),""), IF(N2<0.001,IF(N2>=0.000001,CONCATENATE(ABS(N2)/0.000001,""),""),""), IF(N2<0.000001,IF(N2>=0.000000001,CONCATENATE(ABS(N2)/0.000000001,""),""),""), IF(N2<0.000000001,IF(N2>=0.000000000001,CONCATENATE(ABS(N2)/0.000000000001,""),""),""), ) -> 2.1 | H14: =CONCATENATE( IF(N2<1000000000000000,IF(N2>=1000000000000,"T",""),""), IF(N2<1000000000000,IF(N2>=1000000000,"G",""),""), IF(N2<1000000000,IF(N2>=1000000,"M",""),""), IF(N2<1000000,IF(N2>=1000,"k",""),""), IF(N2<1000,IF(N2>=1,"-",""),""), IF(N2<1,IF(N2>=0.001,"m",""),""), IF(N2<0.001,IF(N2>=0.000001,"u",""),""), IF(N2<0.000001,IF(N2>=0.000000001,"n",""),""), IF(N2<0.000000001,IF(N2>=0.000000000001,"p",""),""), ) -> n | I14: =IF(ISNA(G14),"",TRIM(CONCATENATE(F2,"+/-",M2,"={1:NUMERICAL:=",F14,":",F14/10,"}+/-{1:NUMERICAL:=",G14,":",G14/10,"}{1:SHORTANSWER:=",H14,"}<BR>"))) -> 6.46061863519721E-07+/-2.09158828997261E-09={1:NUMERICAL:=646.1:64.61}+/-{1:NUMERICAL:=2.1:0.21}{1:SHORTANSWER:=n}<BR>
C15: 3 | E15: ResB_EPhy | F15: =CONCATENATE( IF(N3<1000000000000000,IF(N3>=1000000000000,CONCATENATE(ABS(G3)/1000000000000,""),""),""), IF(N3<1000000000000,IF(N3>=1000000000,CONCATENATE(ABS(G3)/1000000000,""),""),""), IF(N3<1000000000,IF(N3>=1000000,CONCATENATE(ABS(G3)/1000000,""),""),""), IF(N3<1000000,IF(N3>=1000,CONCATENATE(ABS(G3)/1000,""),""),""), IF(N3<1000,IF(N3>=1,CONCATENATE(ABS(G3)/1,""),""),""), IF(N3<1,IF(N3>=0.001,CONCATENATE(ABS(G3)/0.001,""),""),""), IF(N3<0.001,IF(N3>=0.000001,CONCATENATE(ABS(G3)/0.000001,""),""),""), IF(N3<0.000001,IF(N3>=0.000000001,CONCATENATE(ABS(G3)/0.000000001,""),""),""), IF(N3<0.000000001,IF(N3>=0.000000000001,CONCATENATE(ABS(G3)/0.000000000001,""),""),"")) -> 620 | G15: =CONCATENATE( IF(N3<1000000000000000,IF(N3>=1000000000000,CONCATENATE(ABS(N3)/1000000000000,""),""),""), IF(N3<1000000000000,IF(N3>=1000000000,CONCATENATE(ABS(N3)/1000000000,""),""),""), IF(N3<1000000000,IF(N3>=1000000,CONCATENATE(ABS(N3)/1000000,""),""),""), IF(N3<1000000,IF(N3>=1000,CONCATENATE(ABS(N3)/1000,""),""),""), IF(N3<1000,IF(N3>=1,CONCATENATE(ABS(N3)/1,""),""),""), IF(N3<1,IF(N3>=0.001,CONCATENATE(ABS(N3)/0.001,""),""),""), IF(N3<0.001,IF(N3>=0.000001,CONCATENATE(ABS(N3)/0.000001,""),""),""), IF(N3<0.000001,IF(N3>=0.000000001,CONCATENATE(ABS(N3)/0.000000001,""),""),""), IF(N3<0.000000001,IF(N3>=0.000000000001,CONCATENATE(ABS(N3)/0.000000000001,""),""),""), ) -> 210 | H15: =CONCATENATE( IF(N3<1000000000000000,IF(N3>=1000000000000,"T",""),""), IF(N3<1000000000000,IF(N3>=1000000000,"G",""),""), IF(N3<1000000000,IF(N3>=1000000,"M",""),""), IF(N3<1000000,IF(N3>=1000,"k",""),""), IF(N3<1000,IF(N3>=1,"-",""),""), IF(N3<1,IF(N3>=0.001,"m",""),""), IF(N3<0.001,IF(N3>=0.000001,"u",""),""), IF(N3<0.000001,IF(N3>=0.000000001,"n",""),""), IF(N3<0.000000001,IF(N3>=0.000000000001,"p",""),""), ) -> u | I15: =IF(ISNA(G15),"",TRIM(CONCATENATE(F3,"+/-",M3,"={1:NUMERICAL:=",F15,":",F15/10,"}+/-{1:NUMERICAL:=",G15,":",G15/10,"}{1:SHORTANSWER:=",H15,"}<BR>"))) -> 0.00062038799704727+/-0.000205475646068861={1:NUMERICAL:=620:62}+/-{1:NUMERICAL:=210:21}{1:SHORTANSWER:=u}<BR>
A16: Var : | B16: # | C16: 0 | E16: ResC_EPhy | F16: =CONCATENATE( IF(N4<1000000000000000,IF(N4>=1000000000000,CONCATENATE(ABS(G4)/1000000000000,""),""),""), IF(N4<1000000000000,IF(N4>=1000000000,CONCATENATE(ABS(G4)/1000000000,""),""),""), IF(N4<1000000000,IF(N4>=1000000,CONCATENATE(ABS(G4)/1000000,""),""),""), IF(N4<1000000,IF(N4>=1000,CONCATENATE(ABS(G4)/1000,""),""),""), IF(N4<1000,IF(N4>=1,CONCATENATE(ABS(G4)/1,""),""),""), IF(N4<1,IF(N4>=0.001,CONCATENATE(ABS(G4)/0.001,""),""),""), IF(N4<0.001,IF(N4>=0.000001,CONCATENATE(ABS(G4)/0.000001,""),""),""), IF(N4<0.000001,IF(N4>=0.000000001,CONCATENATE(ABS(G4)/0.000000001,""),""),""), IF(N4<0.000000001,IF(N4>=0.000000000001,CONCATENATE(ABS(G4)/0.000000000001,""),""),"")) -> 940 | G16: =CONCATENATE( IF(N4<1000000000000000,IF(N4>=1000000000000,CONCATENATE(ABS(N4)/1000000000000,""),""),""), IF(N4<1000000000000,IF(N4>=1000000000,CONCATENATE(ABS(N4)/1000000000,""),""),""), IF(N4<1000000000,IF(N4>=1000000,CONCATENATE(ABS(N4)/1000000,""),""),""), IF(N4<1000000,IF(N4>=1000,CONCATENATE(ABS(N4)/1000,""),""),""), IF(N4<1000,IF(N4>=1,CONCATENATE(ABS(N4)/1,""),""),""), IF(N4<1,IF(N4>=0.001,CONCATENATE(ABS(N4)/0.001,""),""),""), IF(N4<0.001,IF(N4>=0.000001,CONCATENATE(ABS(N4)/0.000001,""),""),""), IF(N4<0.000001,IF(N4>=0.000000001,CONCATENATE(ABS(N4)/0.000000001,""),""),""), IF(N4<0.000000001,IF(N4>=0.000000000001,CONCATENATE(ABS(N4)/0.000000000001,""),""),""), ) -> 130 | H16: =CONCATENATE( IF(N4<1000000000000000,IF(N4>=1000000000000,"T",""),""), IF(N4<1000000000000,IF(N4>=1000000000,"G",""),""), IF(N4<1000000000,IF(N4>=1000000,"M",""),""), IF(N4<1000000,IF(N4>=1000,"k",""),""), IF(N4<1000,IF(N4>=1,"-",""),""), IF(N4<1,IF(N4>=0.001,"m",""),""), IF(N4<0.001,IF(N4>=0.000001,"u",""),""), IF(N4<0.000001,IF(N4>=0.000000001,"n",""),""), IF(N4<0.000000001,IF(N4>=0.000000000001,"p",""),""), ) -> - | I16: =IF(ISNA(G16),"",TRIM(CONCATENATE(F4,"+/-",M4,"={1:NUMERICAL:=",F16,":",F16/10,"}+/-{1:NUMERICAL:=",G16,":",G16/10,"}{1:SHORTANSWER:=",H16,"}<BR>"))) -> 942.561897151825+/-125.530328289887={1:NUMERICAL:=940:94}+/-{1:NUMERICAL:=130:13}{1:SHORTANSWER:=-}<BR>
A17: Res : | B17: $ | C17: 10 | E17: ResD_EPhy | F17: =CONCATENATE( IF(N5<1000000000000000,IF(N5>=1000000000000,CONCATENATE(ABS(G5)/1000000000000,""),""),""), IF(N5<1000000000000,IF(N5>=1000000000,CONCATENATE(ABS(G5)/1000000000,""),""),""), IF(N5<1000000000,IF(N5>=1000000,CONCATENATE(ABS(G5)/1000000,""),""),""), IF(N5<1000000,IF(N5>=1000,CONCATENATE(ABS(G5)/1000,""),""),""), IF(N5<1000,IF(N5>=1,CONCATENATE(ABS(G5)/1,""),""),""), IF(N5<1,IF(N5>=0.001,CONCATENATE(ABS(G5)/0.001,""),""),""), IF(N5<0.001,IF(N5>=0.000001,CONCATENATE(ABS(G5)/0.000001,""),""),""), IF(N5<0.000001,IF(N5>=0.000000001,CONCATENATE(ABS(G5)/0.000000001,""),""),""), IF(N5<0.000000001,IF(N5>=0.000000000001,CONCATENATE(ABS(G5)/0.000000000001,""),""),"")) -> 207240 | G17: =CONCATENATE( IF(N5<1000000000000000,IF(N5>=1000000000000,CONCATENATE(ABS(N5)/1000000000000,""),""),""), IF(N5<1000000000000,IF(N5>=1000000000,CONCATENATE(ABS(N5)/1000000000,""),""),""), IF(N5<1000000000,IF(N5>=1000000,CONCATENATE(ABS(N5)/1000000,""),""),""), IF(N5<1000000,IF(N5>=1000,CONCATENATE(ABS(N5)/1000,""),""),""), IF(N5<1000,IF(N5>=1,CONCATENATE(ABS(N5)/1,""),""),""), IF(N5<1,IF(N5>=0.001,CONCATENATE(ABS(N5)/0.001,""),""),""), IF(N5<0.001,IF(N5>=0.000001,CONCATENATE(ABS(N5)/0.000001,""),""),""), IF(N5<0.000001,IF(N5>=0.000000001,CONCATENATE(ABS(N5)/0.000000001,""),""),""), IF(N5<0.000000001,IF(N5>=0.000000000001,CONCATENATE(ABS(N5)/0.000000000001,""),""),""), ) -> 730 | H17: =CONCATENATE( IF(N5<1000000000000000,IF(N5>=1000000000000,"T",""),""), IF(N5<1000000000000,IF(N5>=1000000000,"G",""),""), IF(N5<1000000000,IF(N5>=1000000,"M",""),""), IF(N5<1000000,IF(N5>=1000,"k",""),""), IF(N5<1000,IF(N5>=1,"-",""),""), IF(N5<1,IF(N5>=0.001,"m",""),""), IF(N5<0.001,IF(N5>=0.000001,"u",""),""), IF(N5<0.000001,IF(N5>=0.000000001,"n",""),""), IF(N5<0.000000001,IF(N5>=0.000000000001,"p",""),""), ) -> - | I17: =IF(ISNA(G17),"",TRIM(CONCATENATE(F5,"+/-",M5,"={1:NUMERICAL:=",F17,":",F17/10,"}+/-{1:NUMERICAL:=",G17,":",G17/10,"}{1:SHORTANSWER:=",H17,"}<BR>"))) -> 207238.519587296+/-721.292165227514={1:NUMERICAL:=207240:20724}+/-{1:NUMERICAL:=730:73}{1:SHORTANSWER:=-}<BR>
E18: ResE_EPhy | F18: =CONCATENATE( IF(N6<1000000000000000,IF(N6>=1000000000000,CONCATENATE(ABS(G6)/1000000000000,""),""),""), IF(N6<1000000000000,IF(N6>=1000000000,CONCATENATE(ABS(G6)/1000000000,""),""),""), IF(N6<1000000000,IF(N6>=1000000,CONCATENATE(ABS(G6)/1000000,""),""),""), IF(N6<1000000,IF(N6>=1000,CONCATENATE(ABS(G6)/1000,""),""),""), IF(N6<1000,IF(N6>=1,CONCATENATE(ABS(G6)/1,""),""),""), IF(N6<1,IF(N6>=0.001,CONCATENATE(ABS(G6)/0.001,""),""),""), IF(N6<0.001,IF(N6>=0.000001,CONCATENATE(ABS(G6)/0.000001,""),""),""), IF(N6<0.000001,IF(N6>=0.000000001,CONCATENATE(ABS(G6)/0.000000001,""),""),""), IF(N6<0.000000001,IF(N6>=0.000000000001,CONCATENATE(ABS(G6)/0.000000000001,""),""),"")) -> 203 | G18: =CONCATENATE( IF(N6<1000000000000000,IF(N6>=1000000000000,CONCATENATE(ABS(N6)/1000000000000,""),""),""), IF(N6<1000000000000,IF(N6>=1000000000,CONCATENATE(ABS(N6)/1000000000,""),""),""), IF(N6<1000000000,IF(N6>=1000000,CONCATENATE(ABS(N6)/1000000,""),""),""), IF(N6<1000000,IF(N6>=1000,CONCATENATE(ABS(N6)/1000,""),""),""), IF(N6<1000,IF(N6>=1,CONCATENATE(ABS(N6)/1,""),""),""), IF(N6<1,IF(N6>=0.001,CONCATENATE(ABS(N6)/0.001,""),""),""), IF(N6<0.001,IF(N6>=0.000001,CONCATENATE(ABS(N6)/0.000001,""),""),""), IF(N6<0.000001,IF(N6>=0.000000001,CONCATENATE(ABS(N6)/0.000000001,""),""),""), IF(N6<0.000000001,IF(N6>=0.000000000001,CONCATENATE(ABS(N6)/0.000000000001,""),""),""), ) -> 11 | H18: =CONCATENATE( IF(N6<1000000000000000,IF(N6>=1000000000000,"T",""),""), IF(N6<1000000000000,IF(N6>=1000000000,"G",""),""), IF(N6<1000000000,IF(N6>=1000000,"M",""),""), IF(N6<1000000,IF(N6>=1000,"k",""),""), IF(N6<1000,IF(N6>=1,"-",""),""), IF(N6<1,IF(N6>=0.001,"m",""),""), IF(N6<0.001,IF(N6>=0.000001,"u",""),""), IF(N6<0.000001,IF(N6>=0.000000001,"n",""),""), IF(N6<0.000000001,IF(N6>=0.000000000001,"p",""),""), ) -> G | I18: =IF(ISNA(G18),"",TRIM(CONCATENATE(F6,"+/-",M6,"={1:NUMERICAL:=",F18,":",F18/10,"}+/-{1:NUMERICAL:=",G18,":",G18/10,"}{1:SHORTANSWER:=",H18,"}<BR>"))) -> 203229312576.579+/-10551759595.7798={1:NUMERICAL:=203:20.3}+/-{1:NUMERICAL:=11:1.1}{1:SHORTANSWER:=G}<BR>
C19: <p>Exprimer correctement ces résultats numériques :</p><ul><li>#1 +/- #6 = $1 +/- $6 </li><li>#2 +/- #7 = $2 +/- $7</li><li>#3 +/- #8 = $3 +/- $8 </li><li>#4 +/- #9 = $4 +/- $9 </li><li>#5 +/- #10 = $5 +/- $10 </li></ul> | G19: =SUM(F14:G18) -> 0
I20: =CONCATENATE(TRIM(ResE_EPhy),TRIM(ResD_EPhy),TRIM(ResC_EPhy),TRIM(ResB_EPhy),TRIM(ResA_EPhy)) -> 203229312576.579+/-10551759595.7798={1:NUMERICAL:=203:20.3}+/-{1:NUMERICAL:=11:1.1}{1:SHORTANSWER:=G}<BR>207238.519587296+/-721.292165227514={1:NUMERICAL:=207240:20724}+/-{1:NUMERICAL:=730:73}{1:SHORTANSWER:=-}<BR>942.561897151825+/-125.530328289887={1:NUMERICAL:=940:94}+/-{1:NUMERICAL:=130:13}{1:SHORTANSWER:=-}<BR>0.00062038799704727+/-0.000205475646068861={1:NUMERICAL:=620:62}+/-{1:NUMERICAL:=210:21}{1:SHORTANSWER:=u}<BR>6.46061863519721E-07+/-2.09158828997261E-09={1:NUMERICAL:=646.1:64.61}+/-{1:NUMERICAL:=2.1:0.21}{1:SHORTANSWER:=n}<BR>
I22: 12.4/10.1 + 7.5/3.7
H24: val | I24: D | J24: %
G25: A | H25: 12.4 | I25: =1/POWER(10,LEN(H25)-LEN(INT(H25))-(H25<>INT(H25))*1) -> 0.1 | J25: =I25/H25 -> 0.008064516129 | O25: Favorable | P25: : | Q25: 5 | R25: voix
G26: B | H26: 10.1 | I26: =1/POWER(10,LEN(H26)-LEN(INT(H26))-(H26<>INT(H26))*1) -> 0.1 | J26: =I26/H26 -> 0.009900990099 | O26: Défavorable | P26: : | Q26: 0 | R26: voix
G27: C | H27: 7.5 | I27: =1/POWER(10,LEN(H27)-LEN(INT(H27))-(H27<>INT(H27))*1) -> 0.1 | J27: =I27/H27 -> 0.01333333333 | O27: Abstention | P27: : | Q27: 1 | R27: voix
G28: D | H28: 3.7 | I28: =1/POWER(10,LEN(H28)-LEN(INT(H28))-(H28<>INT(H28))*1) -> 0.1 | J28: =I28/H28 -> 0.02702702703
G29: A/B | H29: =H25/H26 -> 1.227722772 | I29: =H29*J29 -> 0.2205666111 | J29: =J25/I25+J26/I26 -> 0.1796550623
G30: C/D | H30: =H27/H28 -> 2.027027027 | I30: =H30*J30 -> 0.8181154127 | J30: =J27/I27+J28/I28 -> 0.4036036036
G31: Moy | H31: =H25/H26+H27/H28 -> 3.254749799
G32: Ratio

Sheet AbsRel
A1: catégorie_AbRe | B1: Rel_abs | C1: =CONCATENATE(" <!-- question XLQ ", titre_AbRe, "-->") -> <!-- question XLQ Rel_abs--> | F1: Valeur Mini_AbRe | G1: Valeur Maxi_AbRe | H1: Sig. Digit_AbRe | I1: Val Choix_AbRe
A2: titre_AbRe | B2: Rel_abs | C2: =CONCATENATE(" <question type=",CHAR(34),"category",CHAR(34),"><category><text>", categorie_AbRe,"</text></category></question>)") -> <question type="category"><category><text>Rel_abs</text></category></question>) | E2: V1._AbRe | F2: 1 | G2: 63 | I2: =RANDBETWEEN(ValMini_AbRe*10^-SigDig_AbRe, ValMaxi_AbRe*10^-SigDig_AbRe)/10^-SigDig_AbRe -> 32 | J2: =I4 -> 4 | K2: =J2/V1._AbRe*100 -> 12.5
A3: Tag_AbRe | B3: Incertitude | C3: <question type="cloze"> | E3: V2._AbRe | F3: 1 | G3: 128 | I3: =RANDBETWEEN(ValMini_AbRe*10^-SigDig_AbRe, ValMaxi_AbRe*10^-SigDig_AbRe)/10^-SigDig_AbRe -> 53 | J3: =IncertAbsV1 -> 4 | K3: =J3/V1._AbRe*100 -> 12.5
A4: idnumber_AbRe | B4: =TEXT(NOW(),"aammjj-hhmmss.00") -> 210710-212021.19 | C4: =CONCATENATE(" <name><text>", titre_AbRe, "</text></name>") -> <name><text>Rel_abs</text></name> | E4: V3._AbRe | F4: 1 | G4: 6 | H4: 0 | I4: =RANDBETWEEN(ValMini_AbRe*10^-SigDig_AbRe, ValMaxi_AbRe*10^-SigDig_AbRe)/10^-SigDig_AbRe -> 4 | K4: =(K3+K2)*V2._AbRe*V1._AbRe/100 -> 424 | L4: =G3*G2 -> 8064 | M4: =K4/L4 -> 0.05257936508
A5: points_AbRe | B5: 1 | C5: <questiontext format="html"> | F5: Cible_AbRe | G5: Tolér_AbRe | H5: Sig. Digit_AbRe
A6: tolérance_AbRe | B6: 0.05 | C6: =CONCATENATE(" <text><![CDATA[<p>", question_AbRe, "</p>]]></text>") -> <text><![CDATA[<p> <p>Calculer les <strong>incertitudes</strong> relative et absolue sur le produit p = A.B, le quotient q = A/B et la somme A+B, dont chaque terme est&nbsp;connu &agrave; une unit&eacute; pr&egrave;s. Application num&eacute;rique, A = 32, B = 53.&nbsp;</p><table><tbody><tr><td>&nbsp;</td><td>Somme</td><td>Ratio</td><td>Produit</td></tr><tr><td>Absolue</td><td>{1:NUMERICAL:=8.00E+00:4.00E-01}</td><td>{1:NUMERICAL:=1.21E-01:6.05E-03}</td><td>{1:NUMERICAL:=3.40E+02:1.70E+01}</td></tr><tr><td>Relative</td><td>{1:NUMERICAL:=9.41E-02:4.71E-03}</td><td>{1:NUMERICAL:=2.00E-01:1.00E-02}</td><td>{1:NUMERICAL:=2.00E-01:1.00E-02}</td></tr></tbody></table><p>&nbsp;</p></p>]]></text> | E6: R1.AbsSomme_AbRe | F6: =IncertAbsV1+IncertAbsV2 -> 8 | G6: =tolerance_AbRe*ValMini_AbRe -> 0.4 | H6: 1 | I6: =CONCATENATE("{",SigDig_AbRe,":NUMERICAL:=",TEXT(Cible_AbRe,"0.00E+00"),":",TEXT(Tolere_AbRe,"0.00E+00"),"}") -> {1:NUMERICAL:=8.00E+00:4.00E-01}
A7: penalité_AbRe | B7: 0.1 | C7: </questiontext> | E7: R2.AbsRatio_AbRe | F7: =(V1._AbRe/V2._AbRe)*(IncertAbsV1/V1._AbRe+IncertAbsV2/V2._AbRe) -> 0.1210395158 | G7: 0.006051975792 | H7: 1 | I7: {1:NUMERICAL:=1.21E-01:6.05E-03}
A8: feedback_AbRe | B8: Propagation | C8: =CONCATENATE(" <defaultgrade>",points_AbRe,"</defaultgrade><generalfeedback><text>",feedback_AbRe,"</text></generalfeedback><penalty>",penalty_AbRe,"</penalty><hidden>0</hidden>)") -> <defaultgrade>1</defaultgrade><generalfeedback><text>Propagation</text></generalfeedback><penalty>0.1</penalty><hidden>0</hidden>) | E8: R3.AbsProd_AbRe | F8: =V2._AbRe*V1._AbRe*(IncertAbsV1/V1._AbRe+IncertAbsV2/V2._AbRe) -> 340 | G8: 17 | H8: 1 | I8: {1:NUMERICAL:=3.40E+02:1.70E+01}
A9: Cellule vides_Trac | B9: =COUNTBLANK(B1:B8) -> 0 | C9: =CONCATENATE(" <idnumber>",idnumber_AbRe,"</idnumber><tags><tag><text>",Tag_AbRe,"</text></tag></tags>") -> <idnumber>210710-212021.19</idnumber><tags><tag><text>Incertitude</text></tag></tags> | E9: R4.RelSomme_AbRe | F9: =(IncertAbsV1+IncertAbsV2)/(V2._AbRe+V1._AbRe) -> 0.09411764706 | G9: 0.004705882353 | H9: 1 | I9: {1:NUMERICAL:=9.41E-02:4.71E-03}
A10: question format HTML_AbRe | B10: =CONCATENATE(" ",C19,C20,C21,C22,C23,C24,C25,C26,C27,C28) -> <p>Calculer les <strong>incertitudes</strong> relative et absolue sur le produit p = A.B, le quotient q = A/B et la somme A+B, dont chaque terme est&nbsp;connu &agrave; une unit&eacute; pr&egrave;s. Application num&eacute;rique, A = 32, B = 53.&nbsp;</p><table><tbody><tr><td>&nbsp;</td><td>Somme</td><td>Ratio</td><td>Produit</td></tr><tr><td>Absolue</td><td>{1:NUMERICAL:=8.00E+00:4.00E-01}</td><td>{1:NUMERICAL:=1.21E-01:6.05E-03}</td><td>{1:NUMERICAL:=3.40E+02:1.70E+01}</td></tr><tr><td>Relative</td><td>{1:NUMERICAL:=9.41E-02:4.71E-03}</td><td>{1:NUMERICAL:=2.00E-01:1.00E-02}</td><td>{1:NUMERICAL:=2.00E-01:1.00E-02}</td></tr></tbody></table><p>&nbsp;</p> | C10: </question> | E10: R5.RelRatio_AbRe | F10: =IncertAbsV1/V1._AbRe+IncertAbsV2/V2._AbRe -> 0.2004716981 | G10: 0.01002358491 | H10: 1 | I10: {1:NUMERICAL:=2.00E-01:1.00E-02}
A11: Repere Var Rep | B11: _AbRe | E11: R6.RelProd_AbRe | F11: =IncertAbsV1/V1._AbRe+IncertAbsV2/V2._AbRe -> 0.2004716981 | G11: 0.01002358491 | H11: 1 | I11: {1:NUMERICAL:=2.00E-01:1.00E-02}
A12: HTML File | B12: Delta.HTML.txt
A13: Valide ? | B13: =ISNUMBER(H13) -> TRUE | H13: =SUM(F6:H11) -> 372.0469056
A14: https://html-online.com/editor/
C15: 4
A16: Var : | B16: # | C16: 2
A17: Res : | B17: $ | C17: 6 | H17: 12.4/10.1 + 7.5/3.7
C19: =CONCATENATE("<p>Calculer les <strong>incertitudes</strong> relative et absolue s") -> <p>Calculer les <strong>incertitudes</strong> relative et absolue s
C20: =CONCATENATE("ur le produit p = A.B, le quotient q = A/B et la s") -> ur le produit p = A.B, le quotient q = A/B et la s
C21: =CONCATENATE("omme A+B, dont chaque terme est&nbsp;connu &agrave") -> omme A+B, dont chaque terme est&nbsp;connu &agrave
C22: =CONCATENATE("; une unit&eacute; pr&egrave;s. Application num&ea") -> ; une unit&eacute; pr&egrave;s. Application num&ea
C23: =CONCATENATE("cute;rique, A = ",V1._AbRe,", B = ",V2._AbRe,".&nbsp;</p><table><tbody") -> cute;rique, A = 32, B = 53.&nbsp;</p><table><tbody
C24: =CONCATENATE("><tr><td>&nbsp;</td><td>Somme</td><td>Ratio</td><t") -> ><tr><td>&nbsp;</td><td>Somme</td><td>Ratio</td><t
C25: =CONCATENATE("d>Produit</td></tr><tr><td>Absolue</td><td>",R1.AbsSomme_AbRe,"</td>") -> d>Produit</td></tr><tr><td>Absolue</td><td>{1:NUMERICAL:=8.00E+00:4.00E-01}</td>
C26: =CONCATENATE("<td>",R2.AbsRatio_AbRe,"</td><td>",R3.AbsProd_AbRe,"</td></tr><tr><td>Relative</td><t") -> <td>{1:NUMERICAL:=1.21E-01:6.05E-03}</td><td>{1:NUMERICAL:=3.40E+02:1.70E+01}</td></tr><tr><td>Relative</td><t
C27: =CONCATENATE("d>",R4.RelSomme_AbRe,"</td><td>",R5.RelRatio_AbRe,"</td><td>",R5.RelRatio_AbRe,"</td></tr></tbody></tabl") -> d>{1:NUMERICAL:=9.41E-02:4.71E-03}</td><td>{1:NUMERICAL:=2.00E-01:1.00E-02}</td><td>{1:NUMERICAL:=2.00E-01:1.00E-02}</td></tr></tbody></tabl
C28: =CONCATENATE("e><p>&nbsp;</p>") -> e><p>&nbsp;</p>
B32: =question_AbRe -> <p>Calculer les <strong>incertitudes</strong> relative et absolue sur le produit p = A.B, le quotient q = A/B et la somme A+B, dont chaque terme est&nbsp;connu &agrave; une unit&eacute; pr&egrave;s. Application num&eacute;rique, A = 32, B = 53.&nbsp;</p><table><tbody><tr><td>&nbsp;</td><td>Somme</td><td>Ratio</td><td>Produit</td></tr><tr><td>Absolue</td><td>{1:NUMERICAL:=8.00E+00:4.00E-01}</td><td>{1:NUMERICAL:=1.21E-01:6.05E-03}</td><td>{1:NUMERICAL:=3.40E+02:1.70E+01}</td></tr><tr><td>Relative</td><td>{1:NUMERICAL:=9.41E-02:4.71E-03}</td><td>{1:NUMERICAL:=2.00E-01:1.00E-02}</td><td>{1:NUMERICAL:=2.00E-01:1.00E-02}</td></tr></tbody></table><p>&nbsp;</p>

Sheet Mobile-VQEc
A1: catégorie_VQE | B1: Mobile-VQEc_VQE | C1: =CONCATENATE(" <!-- question XLQ ", titre_VQE, "-->") -> <!-- question XLQ Mobile-VQEc_VQE--> | F1: Valeur Mini_VQE | G1: Valeur Maxi_VQE | H1: Sig. Digit_VQE | I1: Val Choix_VQE | K1: max | L1: min | M1: Moy | N1: Delta | O1: Delta Rel
B2: Mobile-VQEc_VQE | C2: =CONCATENATE(" <question type=",CHAR(34),"category",CHAR(34),"><category><text>", categorie_VQE,"</text></category></question>)") -> <question type="category"><category><text>Mobile-VQEc_VQE</text></category></question>) | E2: V1.distance_VQE | F2: 250 | G2: 750 | H2: 0 | I2: =RANDBETWEEN(ValMini_VQE*10^-SigDig_VQE, ValMaxi_VQE*10^-SigDig_VQE)/10^-SigDig_VQE -> 357 | J2: m | K2: =V1.distance_VQE*(1+V3.Deltad_VQE/100) -> 392.7 | L2: =V1.distance_VQE*(1-V3.Deltad_VQE/100) -> 321.3 | M2: =AVERAGE(K2,L2) -> 357 | N2: =(K2-L2)/2 -> 35.7 | O2: =N2/M2 -> 0.1
A3: Tag_VQE | B3: Mobile-VQEc_VQE | C3: <question type="cloze"> | E3: V2.temps_VQE | F3: =V1.distance_VQE/10 -> 35.7 | G3: =V1.distance_VQE/2 -> 178.5 | H3: 0 | I3: 143 | J3: s | K3: =V2.temps_VQE*(1+V4.Deltat_VQE/100) -> 147.29 | L3: =V2.temps_VQE*(1-V4.Deltat_VQE/100) -> 138.71 | M3: =AVERAGE(K3,L3) -> 143 | N3: =(K3-L3)/2 -> 4.29 | O3: =N3/M3 -> 0.03 | CA3: Afin d'accéder à la vitesse v d'un mobile, on mesure la distance d = #1# <p>parcourue durant un intervalle de temps t : #2#. Les incertitudes sont<p>supposées indépendantes (de #3#% et #4#% respectivement). <p>On cherche à connaitre la vitesse de ce mobile : <p>En calculant pour les valeurs maximum Vmax=$1$ et minimum Vmin=$2$ de la vitesse, on peut déduire la vitess la plus probable $3$ et son incertitude $4$.<p>Si la masse du mobile est m=#5# +/- #6# kg, on peut en déterminer la quantité de mouvement $p=mv$ = $5$ +/- $6$ kg.ms-1.<p>et son énergie cinétique : $Ec=1/2 mv2$ ^= $7$ +/- $8$ J.<p>
A4: idnumber_VQE | B4: =TEXT(NOW(),"aammjj-hhmmss.00") -> 210710-212021.19 | C4: =CONCATENATE(" <name><text>", titre_VQE, "</text></name>") -> <name><text>Mobile-VQEc_VQE</text></name> | E4: V3.Deltad_VQE | F4: =G4/2 -> 7.64 | G4: =1+V1.distance_VQE/25 -> 15.28 | H4: 0 | I4: 10 | J4: %
A5: points_VQE | B5: 1 | C5: <questiontext format="html"> | E5: V4.Deltat_VQE | F5: =G5/3 -> 2.716666667 | G5: =1+V2.temps_VQE/20 -> 8.15 | H5: 0 | I5: 3 | J5: %
A6: tolérance_VQE | B6: 0.05 | C6: =CONCATENATE(" <text><![CDATA[<p>", question_VQE, "</p>]]></text>") -> <text><![CDATA[<p> Afin d'acc&eacute;der &agrave; la vitesse v d'un mobile, on mesure la distance d = 357m <p>parcourue durant un intervalle de temps t : 143s. Les incertitudes sont<p>suppos&eacute;es ind&eacute;pendantes (de 10% et 3% respectivement).<p>Calculez les valeurs maximum Vmax={1:NUMERICAL:=2.83E+00:1.42E-01}m/s et minimum Vmin={1:NUMERICAL:=2.18E+00:1.09E-01}m/s de la vitesse, la vitess la plus probable {1:NUMERICAL:=2.50E+00:1.25E-01}m/s et son incertitude{2:NUMERICAL:=3.25E-01:1.62E-02}m/s.<p>Si la masse du mobile est m=36 +/- 5 kg, on peut en d&eacute;terminer la quantit&eacute; de mouvement p=mv = {1:NUMERICAL:=8.99E+01:4.49E+00} +/- {2:NUMERICAL:=2.42E+01:1.21E+00} kg.ms-1.<p>et son &eacute;nergie cin&eacute;tique: Ec=1/2 mv<sup>2</sup> = {1:NUMERICAL:=1.12E+02:5.61E+00} +/- {2:NUMERICAL:=4.47E+01:2.24E+00} J.<p></p>]]></text> | E6: V5.masse_VQE | F6: 10 | G6: 100 | H6: 0 | I6: 36 | J6: kg
A7: penalité_VQE | B7: 0.1 | C7: </questiontext> | E7: V6.Deltam_VQE | F7: =ROUND(V5.masse_VQE/10,0) -> 4 | G7: =V5.masse_VQE/7 -> 5.142857143 | H7: 0 | I7: 5 | J7: kg | N7: V | O7: =M2/M3 -> 2.496503497 | P7: m/s
A8: feedback_VQE | B8: _ | C8: =CONCATENATE(" <defaultgrade>",points_VQE,"</defaultgrade><generalfeedback><text>",feedback_VQE,"</text></generalfeedback><penalty>",penalty_VQE,"</penalty><hidden>0</hidden>)") -> <defaultgrade>1</defaultgrade><generalfeedback><text>_</text></generalfeedback><penalty>0.1</penalty><hidden>0</hidden>) | I8: 0 | N8: Delta V | O8: =O2+O3 -> 0.13
A9: Cellule vides_VQE | B9: =COUNTBLANK(B1:B8) -> 0 | C9: =CONCATENATE(" <idnumber>",idnumber_VQE,"</idnumber><tags><tag><text>",Tag_VQE,"</text></tag></tags>") -> <idnumber>210710-212021.19</idnumber><tags><tag><text>Mobile-VQEc_VQE</text></tag></tags> | F9: Cible_VQE | G9: Toler_VQE | H9: PointsQuestion_VQE | N9: Delta m | O9: =V6.Deltam_VQE/V5.masse_VQE -> 0.1388888889
A10: question format HTML_VQE | B10: =CONCATENATE(" ",B19,B20,B21,B22,B23,B24,B25) -> Afin d'acc&eacute;der &agrave; la vitesse v d'un mobile, on mesure la distance d = 357m <p>parcourue durant un intervalle de temps t : 143s. Les incertitudes sont<p>suppos&eacute;es ind&eacute;pendantes (de 10% et 3% respectivement).<p>Calculez les valeurs maximum Vmax={1:NUMERICAL:=2.83E+00:1.42E-01}m/s et minimum Vmin={1:NUMERICAL:=2.18E+00:1.09E-01}m/s de la vitesse, la vitess la plus probable {1:NUMERICAL:=2.50E+00:1.25E-01}m/s et son incertitude{2:NUMERICAL:=3.25E-01:1.62E-02}m/s.<p>Si la masse du mobile est m=36 +/- 5 kg, on peut en d&eacute;terminer la quantit&eacute; de mouvement p=mv = {1:NUMERICAL:=8.99E+01:4.49E+00} +/- {2:NUMERICAL:=2.42E+01:1.21E+00} kg.ms-1.<p>et son &eacute;nergie cin&eacute;tique: Ec=1/2 mv<sup>2</sup> = {1:NUMERICAL:=1.12E+02:5.61E+00} +/- {2:NUMERICAL:=4.47E+01:2.24E+00} J.<p> | C10: </question> | E10: R1.Vmax_VQE | F10: =K2/L3 -> 2.831086439 | G10: =tolerance_VQE*ValMini_VQE -> 0.141554322 | H10: 1 | I10: =CONCATENATE("{",PointsQuestion_VQE,":NUMERICAL:=",TEXT(Cible_VQE,"0.00E+00"),":",TEXT(ABS(Tolere_VQE),"0.00E+00"),"}") -> {1:NUMERICAL:=2.83E+00:1.42E-01}
A11: Repere Var Rep | B11: _VQE | E11: R2.Vmin_VQE | F11: =L2/K3 -> 2.181410822 | G11: 0.1090705411 | H11: 1 | I11: {1:NUMERICAL:=2.18E+00:1.09E-01} | N11: Delta Q | O11: =F15/F14 -> 0.2688888889
A12: HTML File | B12: =CONCATENATE(categorie_VQE,"_HTML.txt") -> Mobile-VQEc_VQE_HTML.txt | E12: R3.Vmoy_VQE | F12: =V1.distance_VQE/V2.temps_VQE -> 2.496503497 | G12: 0.1248251748 | H12: 1 | I12: {1:NUMERICAL:=2.50E+00:1.25E-01} | N12: Delta Ec | O12: =F17/F16 -> 0.3988888889
A13: Valide ? | B13: =AND(ISNUMBER(P32),P30<50) -> TRUE | E13: R4.DeltaVmoy_VQE | F13: =F12*DV -> 0.3245454545 | G13: 0.01622727273 | H13: 2 | I13: {2:NUMERICAL:=3.25E-01:1.62E-02}
A14: https://html-online.com/editor/ | E14: R5.QuMouv_VQE | F14: =Vmoy*V5.masse_VQE -> 89.87412587 | G14: 4.493706294 | H14: 1 | I14: {1:NUMERICAL:=8.99E+01:4.49E+00}
C15: 8 | E15: R6.DeltaQ_VQE | F15: =F14*(DV+DM) -> 24.16615385 | G15: 1.208307692 | H15: 2 | I15: {2:NUMERICAL:=2.42E+01:1.21E+00}
A16: Var : | B16: # | C16: 6 | E16: R7.EnergCin_VQE | F16: =0.5*V5.masse_VQE*Vmoy^2 -> 112.1855347 | G16: 5.609276737 | H16: 1 | I16: {1:NUMERICAL:=1.12E+02:5.61E+00}
A17: Res : | B17: $ | C17: 8 | E17: R8.DeltaEc_VQE | F17: =F16*(DM+2*DV) -> 44.7495633 | G17: 2.237478165 | H17: 2 | I17: {2:NUMERICAL:=4.47E+01:2.24E+00}
B19: =CONCATENATE("Afin d'acc&eacute;der &agrave; la vitesse v d'un mobile, on mesure la distance d = ",V1.distance_VQE,"m <p>parcourue durant un intervalle de temps t : ",V2.temps_VQE,"s. Les incertitudes sont<p>suppos&eacute;es ind&eacute;pendantes (de ",V3.Deltad_VQE,"% et ",V4.Deltat_VQE,"% respectivement).") -> Afin d'acc&eacute;der &agrave; la vitesse v d'un mobile, on mesure la distance d = 357m <p>parcourue durant un intervalle de temps t : 143s. Les incertitudes sont<p>suppos&eacute;es ind&eacute;pendantes (de 10% et 3% respectivement). | C19: Afin d'accéder à la vitesse v d'un mobile, on mesure la distance d = #1#
B20: =CONCATENATE("<p>Calculez les valeurs maximum Vmax=",R1.Vmax_VQE,"m/s et minimum Vmin=",R2.Vmin_VQE,"m/s de la vitesse, la vitess la plus probable ",R3.Vmoy_VQE,"m/s et son incertitude") -> <p>Calculez les valeurs maximum Vmax={1:NUMERICAL:=2.83E+00:1.42E-01}m/s et minimum Vmin={1:NUMERICAL:=2.18E+00:1.09E-01}m/s de la vitesse, la vitess la plus probable {1:NUMERICAL:=2.50E+00:1.25E-01}m/s et son incertitude | C20: parcourue durant un intervalle de temps t : #2#. Les incertitudes sont
B21: =CONCATENATE("",R4.DeltaVmoy_VQE,"m/s.<p>Si la masse du mobile est m=",V5.masse_VQE," +/- ",V6.Deltam_VQE," kg, on peut en d&eacute;terminer la quantit&eacute; de mouvement p=mv = ",R5.QuMouv_VQE," +/- ",R6.DeltaQ_VQE," kg.ms-1.<p>et son &eacute;nergie cin&eacute;tique: Ec=1/2 mv<sup>2</sup> = ",R7.EnergCin_VQE," +/- ",R8.DeltaEc_VQE," J.<p>") -> {2:NUMERICAL:=3.25E-01:1.62E-02}m/s.<p>Si la masse du mobile est m=36 +/- 5 kg, on peut en d&eacute;terminer la quantit&eacute; de mouvement p=mv = {1:NUMERICAL:=8.99E+01:4.49E+00} +/- {2:NUMERICAL:=2.42E+01:1.21E+00} kg.ms-1.<p>et son &eacute;nergie cin&eacute;tique: Ec=1/2 mv<sup>2</sup> = {1:NUMERICAL:=1.12E+02:5.61E+00} +/- {2:NUMERICAL:=4.47E+01:2.24E+00} J.<p> | C21: supposées indépendantes (de #3#% et #4#% respectivement).
B22: =CONCATENATE("") ->  | F22: val | G22: delta | H22: %
B23: =CONCATENATE("") ->  | C23: On cherche à connaitre la vitesse de ce mobile : | E23: d | F23: 357 | G23: =H23*F23/100 -> 24.99 | H23: 7
B24: =CONCATENATE("") ->  | E24: t | F24: 135 | G24: =H24*F24/100 -> 5.4 | H24: 4 | N24: val | O24: delta | P24: %
B25: =CONCATENATE("") ->  | C25: En calculant pour les valeurs maximum Vmax=$1$ et minimum Vmin=$2$ de la vitesse, on peut déduire la vitess la plus probable $3$ et son incertitude $4$. | E25: m | F25: 37 | G25: 5 | H25: =G25*100/F25 -> 13.51351351 | M25: d | N25: =V1.distance_VQE -> 357 | O25: =V3.Deltad_VQE -> 10 | P25: =O25*100/N25 -> 2.801120448
E26: v | F26: =F23/F24 -> 2.644444444 | G26: =F26*H26/100 -> 0.2908888889 | H26: =H24+H23 -> 11 | M26: t | N26: =V2.temps_VQE -> 143 | O26: =V4.Deltat_VQE -> 3 | P26: =O26*100/N26 -> 2.097902098
C27: Si la masse du mobile est m=#5# +/- #6# kg, on peut en déterminer la quantité de mouvement $p=mv$ = $5$ +/- $6$ kg.ms-1. | E27: p | F27: =F25*F26 -> 97.84444444 | G27: =H27*F27/100 -> 17.136 | H27: =H25+H24 -> 17.51351351 | M27: m | N27: =V5.masse_VQE -> 36 | O27: =V6.Deltam_VQE -> 5 | P27: =O27*100/N27 -> 13.88888889
E28: Ec | F28: =0.5*F25*(F23/F24)^2 -> 129.3720988 | G28: =H28*F28/100 -> 45.94457778 | H28: =H25+2*H26 -> 35.51351351 | M28: v | N28: =N25/N26 -> 2.496503497 | O28: =N28*P28/100 -> 0.1223042692 | P28: =P26+P25 -> 4.899022546
C29: et son énergie cinétique : $Ec=1/2 mv2$ ^= $7$ +/- $8$ J. | M29: p | N29: =N27*N28 -> 89.87412587 | O29: =P29*N29/100 -> 14.36798865 | P29: =P27+P26 -> 15.98679099
M30: Ec | N30: =0.5*N27*(N25/N26)^2 -> 112.1855347 | O30: =P30*N30/100 -> 26.57331355 | P30: =P27+2*P28 -> 23.68693398
P32: =SUM(M25:P30) -> 862.9804295

Sheet ExpFonctions
A1: catégorie_Fon | B1: ExpFonctions | C1: =CONCATENATE(" <!-- question XLQ ", titre_Fon, "-->") -> <!-- question XLQ ExpFonctions_Fon--> | F1: Valeur Mini_Fon | G1: Valeur Maxi_Fon | H1: Sig. Digit_Fon | I1: Val Choix_Fon | J1: Least significant | M1: maxi | N1: mini | O1: Delta
B2: ExpFonctions_Fon | C2: =CONCATENATE(" <question type=",CHAR(34),"category",CHAR(34),"><category><text>", categorie_Fon,"</text></category></question>)") -> <question type="category"><category><text>ExpFonctions</text></category></question>) | E2: V1._Fon | F2: 0.02 | G2: 0.97 | H2: -2 | I2: =RANDBETWEEN(ValMini_Fon*10^-SigDig_Fon, ValMaxi_Fon*10^-SigDig_Fon)/10^-SigDig_Fon -> 0.06 | J2: =1/POWER(10,LEN(I2)-LEN(INT(I2))-(I2<>INT(I2))*1) -> 0.01 | K2: ln | L2: =J2/V1._Fon -> 0.1666666667 | M2: =LN(V1._Fon+J2) -> -2.659260037 | N2: =LN(V1._Fon-J2) -> -2.995732274 | O2: =ABS(M2-N2)/2 -> 0.1682361183
A3: Tag_Fon | B3: ExpFonctions_Fon | C3: <question type="cloze"> | E3: V2._Fon | F3: 25 | G3: 75 | H3: 0 | I3: =RANDBETWEEN(ValMini_Fon*10^-SigDig_Fon, ValMaxi_Fon*10^-SigDig_Fon)/10^-SigDig_Fon -> 30 | J3: =1/POWER(10,LEN(I3)-LEN(INT(I3))-(I3<>INT(I3))*1) -> 1 | K3: cos | L3: =J3/V2._Fon -> 0.03333333333 | M3: =COS(RADIANS((V2._Fon+J3))) -> 0.8571673007 | N3: =COS(RADIANS((V2._Fon-J3))) -> 0.8746197071 | O3: =ABS(M3-N3)/2 -> 0.008726203219 | CA3: Exprimer les résultats suivants : <p>ln(#1#) = $1$ +/- $2$ <p>cos(#2#) = $3$ +/- $4$ <p>sin(#3#) = $5$ +/- $6$ <p>exp(#4#) = $7$ +/- $8$ <p>
A4: idnumber_Fon | B4: =TEXT(NOW(),"aammjj-hhmmss.00") -> 210710-212021.19 | C4: =CONCATENATE(" <name><text>", titre_Fon, "</text></name>") -> <name><text>ExpFonctions_Fon</text></name> | E4: V3._Fon | F4: 38 | G4: 73 | H4: -1 | I4: =RANDBETWEEN(ValMini_Fon*10^-SigDig_Fon, ValMaxi_Fon*10^-SigDig_Fon)/10^-SigDig_Fon -> 53.7 | J4: =1/POWER(10,LEN(I4)-LEN(INT(I4))-(I4<>INT(I4))*1) -> 0.1 | K4: sin | L4: =J4/V3._Fon -> 0.001862197393 | M4: =SIN(RADIANS((V3._Fon+J4))) -> 0.8069603121 | N4: =SIN(RADIANS((V3._Fon-J4))) -> 0.8048937974 | O4: =ABS(M4-N4)/2 -> 0.001033257394
A5: points_Fon | B5: 1 | C5: <questiontext format="html"> | E5: V4._Fon | F5: -1 | G5: 2 | H5: -2 | I5: =IF(I6=0,RANDBETWEEN(0.1,0.77),I6) -> 1.36 | J5: =1/POWER(10,LEN(I5)-LEN(INT(I5))-(I5<>INT(I5))*1) -> 0.01 | K5: exp | L5: =J5/V4._Fon -> 0.007352941176 | M5: =EXP(V4._Fon+J5) -> 3.935350695 | N5: =EXP(V4._Fon-J5) -> 3.857425531 | O5: =ABS(M5-N5)/2 -> 0.03896258239
A6: tolérance_Fon | B6: 0.05 | C6: =CONCATENATE(" <text><![CDATA[<p>", question_Fon, "</p>]]></text>") -> <text><![CDATA[<p> Exprimer correctement les resultats suivants : <p>ln(0.06) = {1:NUMERICAL:=-2.81E+00:1.41E-01} +/- {1:NUMERICAL:=1.67E-01:8.33E-03} <p>cos(30) = {1:NUMERICAL:=8.66E-01:4.33E-02} +/- {2:NUMERICAL:=8.73E-03:4.36E-04} <p>sin(53.7) = {1:NUMERICAL:=8.06E-01:4.03E-02} +/- {2:NUMERICAL:=1.03E-03:5.17E-05} <p>exp(1.36) = {1:NUMERICAL:=3.90E+00:1.95E-01} +/- {2:NUMERICAL:=3.90E-02:1.95E-03} <p></p>]]></text> | F6: =F5 -> -1 | G6: =G5 -> 2 | H6: =H5 -> -2 | I6: =RANDBETWEEN(ValMini_Fon*10^-SigDig_Fon, ValMaxi_Fon*10^-SigDig_Fon)/10^-SigDig_Fon+0.1 -> 1.36
A7: penalité_Fon | B7: 0.1 | C7: </questiontext> | F7: Cible_Fon | G7: Toler_Fon | H7: PointsQuestion_Fon
A8: feedback_Fon | B8: _ | C8: =CONCATENATE(" <defaultgrade>",points_Fon,"</defaultgrade><generalfeedback><text>",feedback_Fon,"</text></generalfeedback><penalty>",penalty_Fon,"</penalty><hidden>0</hidden>)") -> <defaultgrade>1</defaultgrade><generalfeedback><text>_</text></generalfeedback><penalty>0.1</penalty><hidden>0</hidden>) | E8: R1._Fon | F8: =LN(V1._Fon) -> -2.813410717 | G8: =tolerance_Fon*ValMini_Fon -> -0.1406705358 | H8: 1 | I8: =CONCATENATE("{",PointsQuestion_Fon,":NUMERICAL:=",TEXT(Cible_Fon,"0.00E+00"),":",TEXT(ABS(Tolere_Fon),"0.00E+00"),"}") -> {1:NUMERICAL:=-2.81E+00:1.41E-01} | K8: ln
A9: Cellule vides_Fon | B9: =COUNTBLANK(B1:B8) -> 0 | C9: =CONCATENATE(" <idnumber>",idnumber_Fon,"</idnumber><tags><tag><text>",Tag_Fon,"</text></tag></tags>") -> <idnumber>210710-212021.19</idnumber><tags><tag><text>ExpFonctions_Fon</text></tag></tags> | E9: R2._Fon | F9: =ABS(J2/V1._Fon) -> 0.1666666667 | G9: 0.008333333333 | H9: 1 | I9: {1:NUMERICAL:=1.67E-01:8.33E-03} | K9: D ln | L9: =F9 -> 0.1666666667 | O9: =ABS((O2-L9)/L9) -> 0.009416709864
A10: question format HTML_Fon | B10: =CONCATENATE(" ",B19,B20) -> Exprimer correctement les resultats suivants : <p>ln(0.06) = {1:NUMERICAL:=-2.81E+00:1.41E-01} +/- {1:NUMERICAL:=1.67E-01:8.33E-03} <p>cos(30) = {1:NUMERICAL:=8.66E-01:4.33E-02} +/- {2:NUMERICAL:=8.73E-03:4.36E-04} <p>sin(53.7) = {1:NUMERICAL:=8.06E-01:4.03E-02} +/- {2:NUMERICAL:=1.03E-03:5.17E-05} <p>exp(1.36) = {1:NUMERICAL:=3.90E+00:1.95E-01} +/- {2:NUMERICAL:=3.90E-02:1.95E-03} <p> | C10: </question> | E10: R3._Fon | F10: =COS(RADIANS(V2._Fon)) -> 0.8660254038 | G10: 0.04330127019 | H10: 1 | I10: {1:NUMERICAL:=8.66E-01:4.33E-02} | K10: cos
A11: Repere Var Rep | B11: _Fon | E11: R4._Fon | F11: =ABS(SIN(RADIANS(V2._Fon)))*RADIANS(J3) -> 0.00872664626 | G11: 0.000436332313 | H11: 2 | I11: {2:NUMERICAL:=8.73E-03:4.36E-04} | K11: D cos | L11: =F11 -> 0.00872664626 | O11: =ABS((ABS(O3)-ABS(L11))/ABS(L11)) -> 5.076879671e-05
A12: HTML File | B12: =CONCATENATE(categorie_Fon,"_HTML.txt") -> ExpFonctions_HTML.txt | E12: R5._Fon | F12: =SIN(RADIANS(V3._Fon)) -> 0.8059282822 | G12: 0.04029641411 | H12: 1 | I12: {1:NUMERICAL:=8.06E-01:4.03E-02} | K12: sin
A13: Valide ? | B13: =AND(ISNUMBER(L16),SUM(O9:O15<0.1)) -> TRUE | E13: R6._Fon | F13: =ABS(COS(RADIANS(V3._Fon)))*RADIANS(J4) -> 0.001033257919 | G13: 5.166289593e-05 | H13: 2 | I13: {2:NUMERICAL:=1.03E-03:5.17E-05} | K13: D sin | L13: =F13 -> 0.001033257919 | O13: =ABS((O4-L13)/L13) -> 5.076955859e-07
A14: https://html-online.com/editor/ | E14: R7._Fon | F14: =EXP(V4._Fon) -> 3.896193302 | G14: 0.1948096651 | H14: 1 | I14: {1:NUMERICAL:=3.90E+00:1.95E-01} | K14: exp
C15: 6 | E15: R8._Fon | F15: =ABS(EXP(V4._Fon))*J5 -> 0.03896193302 | G15: 0.001948096651 | H15: 2 | I15: {2:NUMERICAL:=3.90E-02:1.95E-03} | K15: D exp | L15: =F15 -> 0.03896193302 | O15: =ABS((O5-L15)/L15) -> 1.666675e-05
A16: Var : | B16: # | C16: 4 | L16: =SUM(L2:L15) -> 0.4246036424 | M16: Vérifie que ça fonctionne
A17: Res : | B17: $ | C17: 8 | F17: https://www.excel-pratique.com/fr/index_des_fonctions/traduction_formule
B19: =CONCATENATE("Exprimer correctement les resultats suivants : <p>ln(",V1._Fon,") = ",R1._Fon," +/- ",R2._Fon," <p>cos(",V2._Fon,") = ",R3._Fon," +/- ",R4._Fon," <p>sin(",V3._Fon,") = ",R5._Fon," +/- ",R6._Fon," <p>exp(",V4._Fon,") = ",R7._Fon," +/- ",R8._Fon," <p>") -> Exprimer correctement les resultats suivants : <p>ln(0.06) = {1:NUMERICAL:=-2.81E+00:1.41E-01} +/- {1:NUMERICAL:=1.67E-01:8.33E-03} <p>cos(30) = {1:NUMERICAL:=8.66E-01:4.33E-02} +/- {2:NUMERICAL:=8.73E-03:4.36E-04} <p>sin(53.7) = {1:NUMERICAL:=8.06E-01:4.03E-02} +/- {2:NUMERICAL:=1.03E-03:5.17E-05} <p>exp(1.36) = {1:NUMERICAL:=3.90E+00:1.95E-01} +/- {2:NUMERICAL:=3.90E-02:1.95E-03} <p> | C19: Exprimer les résultats suivants :
B20: =CONCATENATE("") -> 
C21: ln(#1#) = $1$ +/- $2$
C23: cos(#2#) = $3$ +/- $4$
J24: 2.1215 | K24: =1/POWER(10,LEN(J24)-LEN(INT(J24))-(J24<>INT(J24))*1) -> 0.0001
C25: sin(#3#) = $5$ +/- $6$
C27: exp(#4#) = $7$ +/- $8$
C41: Exprimer les résultats suivants : <p>ln(",V1._Fon,") = ",R1._Fon," +/- ",R2._Fon," <p>cos(",V2._Fon,") = ",R3._Fon," +/- ",R4._Fon," <p>sin(",V3._Fon,") = ",R5._Fon," +/- ",R6._Fon," <p>exp(",V4._Fon,") = ",R7._Fon," +/- ",R8._Fon," <p>
